{"text_format":"3","workbook":"xlsx","n_sheets":7,"sheets":["Correctional Centres","EC","FSNC","LMN","GP","WC","KZN"],"not_rendered":{"defined_names":6},"read":"whole","date_system":"1900"}

{"sheet":"Correctional Centres","index":0,"n_rows":275,"n_cols":6,"rows_kept":275,"hidden":true}
["Region","Management Area","Address per Management Area","Correctional Centre Name","NO. OF TELEPHONE BOOTHS OPERATIONAL","NO. OF TELEPHONE BOOTHS NOT OPERATIONAL"]
["EC","Amathole",null,"Fort Beaufort Correctional Centre"]
["EC","Amathole",null,"Grahamstown Correctional Centre"]
["EC","Amathole",null,"King Williams Town Correctional Centre"]
["EC","Amathole",null,"Middledrift Correctionsl Centre"]
["EC","Amathole",null,"Stutterheim Correctional Centre"]
["EC","East London","Bank street, WesBank, East London","East London Parole Board"]
["EC","East London",null,"Mdantsane Correctional Centre"]
["EC","East London",null,"East London Maximum"]
["EC","East London",null,"East London Medium B Remand"]
["EC","East London",null,"East London Medium C Female"]
["EC","Kirkwood",null,"Graaffreinet Correctional Centre"]
["EC","Kirkwood",null,"Jansenville Correctional Centre"]
["EC","Kirkwood",null,"Kirkwood Correctional Centre"]
["EC","Kirkwood",null,"Somerset East Correctional Centre"]
["EC","Mthatha ",null,"Bizana Correctional Centre"]
["EC","Mthatha ",null,"Elliotdale Correctional Centre"]
["EC","Mthatha ",null,"Flagstaff Correctional Centre"]
["EC","Mthatha ",null,"Lusikisiki Correctional Centre"]
["EC","Mthatha ",null,"Mqanduli Correctional Centre"]
["EC","Mthatha ",null,"Mt Ayliff Correctional Centre"]
["EC","Mthatha ",null,"Mt Fletcher Correctional Centre"]
["EC","Mthatha ",null,"Mt Frere Correctional Centre"]
["EC","Mthatha ",null,"Mthatha Correctional Centre Medium"]
["EC","Mthatha ",null,"Ngqeleni Correctional Centre"]
["EC","Mthatha ",null,"Mthatha Remand Detention Facility"]
["EC","Mthatha ",null,"Tabankulu Correctional Centre"]
["EC","Sada ",null,"Barkly East Correctional Centre"]
["EC","Sada ",null,"Burgersdorp Correctional Centre"]
["EC","Sada ",null,"Butterworth Correctional Centre"]
["EC","Sada ",null,"Cofimvaba Correctional Centre"]
["EC","Sada ",null,"Cradock Correctional Centre"]
["EC","Sada ",null,"Dodrecht Correctional Centre"]
["EC","Sada ",null,"Idutywa Correctional Centre"]
["EC","Sada ",null,"Lady Frere Correctional Centre"]
["EC","Sada ",null,"Middelburg Correctional Centre"]
["EC","Sada ",null,"Ngcobo Correctional Centre"]
["EC","Sada ",null,"Nqamakwe Correctional Centre"]
["EC","Sada ",null,"Queenstown Correctional Centre"]
["EC","Sada ",null,"Sada Correctional Centre"]
["EC","Sada ",null,"Sterkspruit Correctional Centre"]
["EC","Sada ",null,"Willowvale Correctional Centre"]
["EC","St Albans ",null,"St Albans Area Office"]
["EC","St Albans ",null,"Humansdorp Community Corrections"]
["EC","St Albans ",null," St Albans Maximum"]
["EC","St Albans ",null,"St Albans Medium A"]
["EC","St Albans ",null," St Albans Medium B"]
["EC","St Albans ",null,"Patensie Correctional Centre"]
["EC","St Albans ",null,"Port Elizabeth Correctional Centre"]
["FS ","Bizzah Makhate",null,"Bethlehem Correctional Centre"]
["FS ","Bizzah Makhate",null,"Bizzah Makhate Correctional Centre  A"]
["FS ","Bizzah Makhate",null,"Bizzah Makhate Correctional Centre B"]
["FS ","Bizzah Makhate",null,"Bizzah Makhate Access Control Gate"]
["FS ","Bizzah Makhate",null,"Bizzah Makhate Correctional Centre C"]
["FS ","Bizzah Makhate",null,"Bizzah Makhate Correctional Centre  D"]
["FS ","Bizzah Makhate",null,"Kroonstad College"]
["FS ","Bizzah Makhate",null,"Ficksburg Correctional Centre"]
["FS ","Bizzah Makhate",null,"Harrismith Correctional Centre"]
["FS ","Bizzah Makhate",null,"Hennenman Correctional Centre"]
["FS ","Bizzah Makhate",null,"Hoopstad Correctional Centre"]
["FS ","Bizzah Makhate",null,"Kroonstad Correctional Centre"]
["FS ","Bizzah Makhate",null,"Lindley Correctional Centre"]
["FS ","Bizzah Makhate",null,"Odendaalsrus Correctional Centre"]
["FS ","Bizzah Makhate",null,"Qwaqwa Correctional Centre"]
["FS ","Bizzah Makhate",null,"Senekal Correctional Centre"]
["FS ","Bizzah Makhate",null,"Ventersburg Correctional Centre"]
["FS ","Bizzah Makhate",null,"Virginia Correctional Centre"]
["FS ","Colesberg",null,"Colesberg Correctional Centre"]
["FS ","Colesberg",null,"De Aar Correctional Centre"]
["FS ","Colesberg",null,"Hope Town Correctional Centre"]
["FS ","Colesberg",null,"Richmond Correctional Centre"]
["FS ","Colesberg",null,"Victoria West Correctional Centre"]
["FS ","Goedemoed",null,"Bethulie Correctional Centre"]
["FS ","Goedemoed",null,"Edenburg Correctional Centre"]
["FS ","Goedemoed",null,"Fauresmith Correctional Centre"]
["FS ","Goedemoed",null,"Goedemoed Correctional Centre Medium A"]
["FS ","Goedemoed",null,"Goedemoed Correctional Centre Medium B"]
["FS ","Goedemoed",null,"Zastron Correctional Centre"]
["FS ","Groenpunt",null,"Frankfort Correctional Centre"]
["FS ","Groenpunt",null,"Heilbron Correctional Centres"]
["FS ","Groenpunt",null,"Groenpunt Maximum Centre"]
["FS ","Groenpunt",null,"Groenpunt Medium Centre"]
["FS ","Groenpunt",null,"Parys Correctional Centre"]
["FS ","Groenpunt",null,"Sasolburg Correctional Centre"]
["FS ","Groenpunt",null,"Vereeniging Correctional Centre"]
["FS ","Groenpunt",null,"Groenpunt Youth Centre"]
["FS ","Grootvlei",null," Ladybrand Correctional Centre"]
["FS ","Grootvlei",null,"Boshof  Correctional Center"]
["FS ","Grootvlei",null,"Brandfort Correctional Centre"]
["FS ","Grootvlei",null,"Grootvlei Medium B Main Gate"]
["FS ","Grootvlei",null,"Grootvlei St Rose Gate"]
["FS ","Grootvlei",null,"Ladybrand Correctional Centre"]
["FS ","Grootvlei",null,"Wepener Correctional Centre"]
["FS ","Grootvlei",null,"Winburg Correctional Centre"]
["NC","Kimberley",null,"Barkley West Correctional Centre"]
["NC","Kimberley",null,"Douglas Correctional Centre"]
["NC","Kimberley",null,"Kimberley Area Commissioners Office"]
["NC","Kimberley",null,"Kimberley Correctional Centre"]
["NC","Kimberley",null,"Tswelopele Correctional Centre"]
["NC","Upington",null,"Kuruman Correctional Centre"]
["NC","Upington",null,"Springbok Correctional Centre"]
["NC","Upington",null,"Upington Correctional Centre",16,3]
["GP","Baviaanspoort",null,"Area Commissioner Main Gate",0,0]
["GP","Baviaanspoort",null,"Baviaanspoort Emthonjeni Correctional Centre",0,10]
["GP","Baviaanspoort",null,"Baviaanspoort Maximum Centre",0,12]
["GP","Baviaanspoort",null,"Baviaanspoort Medium Centre",0,14]
["GP","Boksburg",null,"Boksburg Area Commissioner Main Gate1"]
["GP","Boksburg",null,"Boksburg Correctional Centre Medium A "]
["GP","Boksburg",null,"Boksburg Correctional Centre Medium B "]
["GP","Boksburg",null,"Heidelberg Correctional Centre"]
["GP","Johannesburg",null,"Ac Corp Service Main Gate1"]
["GP","Johannesburg",null,"Ac Corrections Main Gate2"]
["GP","Johannesburg",null,"Johannesburg Female"]
["GP","Johannesburg",null,"Johannesburg Correctional Centre Medium A"]
["GP","Johannesburg",null,"Johannesburg Correctional Centre Medium B"]
["GP","Johannesburg",null,"Johannesburg Correctional Centre Medium C"]
["GP","Kgoši Mamapuru II",null,"Ac Corrections Main Gate1"]
["GP","Kgoši Mamapuru II",null,"Kmii Cmax"]
["GP","Kgoši Mamapuru II",null,"Atteridgeville Correctional Centre"]
["GP","Kgoši Mamapuru II",null,"Kmii Central"]
["GP","Kgoši Mamapuru II",null,"Kmii Female "]
["GP","Kgoši Mamapuru II",null,"Kmii Local "]
["GP","Kgoši Mamapuru II",null,"Odi Correctional Centre "]
["GP","Kgoši Mamapuru II",null,"Kmii Main Gate2"]
["GP","Krugersdorp",null,"Ac Corrections Main Gate"]
["GP","Leeuwkop",null,"Leeuwkop Max Centre"]
["GP","Leeuwkop",null,"Leeuwkop  Medium B Centre"]
["GP","Leeuwkop",null,"Leeuwkop Corporate Services Main Gate2"]
["GP","Leeuwkop",null,"Leeuwkop Corrections Main Gate1"]
["GP","Leeuwkop",null,"Leeuwkop Medium A Centre"]
["GP","Leeuwkop",null,"Leeuwkop Medium C Centre"]
["GP","Modderbee",null,"Modderbee Ac Corrections Main Gate"]
["GP","Modderbee",null,"Devon Correctional Centre "]
["GP","Modderbee",null,"Modderbee Correctional Centre"]
["GP","Modderbee",null,"Nigel Correctional Centre"]
["GP","Pretoria",null,"Hatfield Regional Office"]
["GP","Zonderwater",null,"Zonderwater Main Gate"]
["GP","Zonderwater",null,"Cullinan Correctional Centre"]
["GP","Zonderwater",null,"Zonderwater Medium A Centre"]
["GP","Zonderwater",null,"Zonderwater Medium B Centre"]
["GP","Zonderwater",null,"Zonderwater College"]
["KZN","Durban",null,"Durban Community Corrections"]
["KZN","Durban",null,"Durban Westville Female Centre"]
["KZN","Durban",null,"Durban Westville Medium A Centre"]
["KZN","Durban",null,"Durban Westville Medium B Centre"]
["KZN","Durban",null,"Durban Westvile Medium C Centre"]
["KZN","Durban",null,"Mzinto Correctional Centre"]
["KZN","Durban",null,"Durban Westville Youth Centre"]
["KZN","Empangeni",null,"Empangeni Medium Centre"]
["KZN","Empangeni",null,"Eshowe Correctional Centre"]
["KZN","Empangeni",null,"Ingwavuma Correctional Centre"]
["KZN","Empangeni",null,"Maphumulo Correctional Centre"]
["KZN","Empangeni",null,"Mtunzini Correctional Centre"]
["KZN","Empangeni",null,"Qalakabusha Correctional Centre"]
["KZN","Empangeni",null,"Stanger Correctional Centre"]
["KZN","Glencoe",null,"Bergville Correctional Centre"]
["KZN","Glencoe",null,"Dundee Correctional Centre"]
["KZN","Glencoe",null,"Escourt Correctional Centre"]
["KZN","Glencoe",null,"Glencoe Correctional Centre"]
["KZN","Glencoe",null,"Greytown Correctional Centre"]
["KZN","Glencoe",null,"Kranskop Correctional Centre"]
["KZN","Glencoe",null,"Ladysmith Correctional Centre"]
["KZN","Glencoe",null,"Pomeroy Correctional Centre"]
["KZN","Kokstad",null,"Ebongweni"]
["KZN","Kokstad",null,"Kokstad Medium"]
["KZN","Kokstad",null,"Matatiele"]
["KZN","Kokstad",null,"Mzimkhulu"]
["KZN","Kokstad",null,"Port Shepstone"]
["KZN","Ncome",null,"Ncome Medium A"]
["KZN","Ncome",null,"Ncome Medium B"]
["KZN","Ncome",null,"Nkandla Correctional Centre"]
["KZN","Ncome",null,"Nongoma Correctional Centre"]
["KZN","Ncome",null,"Nquthu Correctional Centre"]
["KZN","Ncome",null,"Vryheid Correctional Centre"]
["KZN","Pietermaritzburg",null,"New Hanover Correctional Centre"]
["KZN","Pietermaritzburg",null,"Ixhopho"]
["KZN","Pietermaritzburg",null,"Pietermaritzburg Medium A"]
["KZN","Pietermaritzburg",null,"Pietermaritzburg Medium B"]
["KZN","Pietermaritzburg",null,"Pietermaritzburg Regional Office"]
["KZN","Pietermaritzburg",null,"Sevontein Correctional Centre"]
["KZN","Waterval",null,"Ekuseni"]
["KZN","Waterval",null,"Waterval Medium A"]
["KZN","Waterval",null,"Waterval Medium B"]
["KZN","Waterval",null,"Newcastle "]
["KZN","Waterval",null,"Utrecht"]
["MP","Barberton",null,"Barberton Ac Office"]
["MP","Barberton",null,"Barberton Maximum"]
["MP","Barberton",null,"Barberton Medium A"]
["MP","Barberton",null,"Barberton Medium B"]
["MP","Barberton",null,"Barberton Town Youth"]
["MP","Barberton",null,"Lydenburg Correctional Centre"]
["MP","Barberton",null,"Nelspruit Correctional Centre"]
["MP","Bethal",null,"Bethal Correctional Centre "]
["MP","Bethal",null,"Ermelo Centre Of Excellence"]
["MP","Bethal",null,"Piet Retief Correctional Centre"]
["MP","Bethal",null,"Volksrust Correctional Centre"]
["MP","Bethal",null,"Standerton Correctional Centre"]
["NW","Klerksdorp",null,"Christiana Correctional Centre"]
["NW","Klerksdorp",null,"Klerksdorp Correctional Centre"]
["NW","Klerksdorp",null,"Potchefstroom Correctional Cntre"]
["NW","Klerksdorp",null,"Wolmaransstad Correctional Centre"]
["LMP","Polokwanwe",null,"Polokwane Correctional Centre"]
["LMP","Polokwanwe",null,"Modimolle Correctional Centre"]
["LMP","Polokwanwe",null,"Tzaneen Correctional Centre"]
["NW","Rooigrond",null,"Rooigrond Correctional Centre Medium A "]
["NW","Rooigrond",null,"Rooigrond Correctional Centre Medium B"]
["NW","Rooigrond",null,"Zeerust Correctional Centre"]
["NW","Rooigrond",null,"Lichtenburg Correctional Centre"]
["NW","Rooigrond",null,"Mafikeng Correctional Centre"]
["NW","Rustenburg",null,"Brits Correctional Service"]
["NW","Rustenburg",null,"Losperfontein Correctional Service"]
["NW","Rustenburg",null,"Mogwase Correctional Service"]
["NW","Rustenburg",null,"Rustenburg Area Commissioner Office"]
["NW","Rustenburg",null,"Rustenburg Centre Of Excellence"]
["NW","Rustenburg",null,"Rustenburg Medium A"]
["LMP","Thohoyandou",null,"Makhado Correctional Centre Gate"]
["LMP","Thohoyandou",null,"Thohoyandou Medium B Gate"]
["LMP","Thohoyandou",null,"Thohoyandoufemale & Juvenile Gate"]
["LMP","Thohoyandou",null,"Thohoyandou Medium A Gate"]
["MP","Witbank",null,"Witbank Ac Office"]
["MP","Witbank",null,"Witbank New Coorectional Centre"]
["MP","Witbank",null,"Witbank Main Gate"]
["MP","Witbank",null,"Middelburg Correctional Centre"]
["MP","Witbank",null,"Belfast Correctional Centre"]
["MP","Witbank",null,"Carolina Correctional Centre"]
["MP","Witbank",null,"Witbank Correctional Centre Hr Office"]
["WC","Allandale",null,"Allandale Area Commissioner"]
["WC","Allandale",null,"Allandale Correctional Services"]
["WC","Allandale",null,"Paarderberg Correctional Services"]
["WC","Allandale",null,"Hawequa Correctional Services"]
["WC","Allandale",null,"Obiqua Correcctional Service"]
["WC","Brandvlei",null,"Brandvlei Access Control"]
["WC","Brandvlei",null,"Brandvlei Maximum"]
["WC","Brandvlei",null,"Brandvlei Medium"]
["WC","Brandvlei",null,"Brandvlei Youth"]
["WC","Brandvlei",null,"Brandvlei Area Commissioners Office"]
["WC","Breede River",null,"Robertson Correctional Centre"]
["WC","Breede River",null,"Warmbokkeveld Correctional Centre"]
["WC","Breede River",null,"Dwarsrivier Correctional Centre"]
["WC","Breede River",null,"Worcester Female Centre"]
["WC","Breede River ",null,"Worcester Male Centre"]
["WC","Drakenstein",null,"Drakenstein Maximum Centre"]
["WC","Drakenstein",null,"Drakenstein Medium A Centre"]
["WC","Drakenstein",null,"Stellenbosch Correctional Centre"]
["WC","Drakenstein ",null,"Drakenstein Medium B  Youth Centre"]
["WC","Goodwood",null,"Goodwood Correctional Services Main Gate"]
["WC","Goodwood",null,"Goodwood Correctional Services"]
["WC","Overberg",null,"Overberg Area Correctional Office"]
["WC","Overberg",null,"Buffeljagsrivier Correctional Service"]
["WC","Overberg",null,"Caledon Remand Detention Facility"]
["WC","Overberg",null,"Helderstroom Maximum Centre"]
["WC","Overberg",null,"Helderstroom Medium Centre"]
["WC","Pollsmoor",null,"Pollsmoor Female"]
["WC","Pollsmoor",null,"Pollsmoor Medium A"]
["WC","Pollsmoor",null,"Pollsmoor Medium B"]
["WC","Pollsmoor",null,"Pollsmoor Medium C"]
["WC","Pollsmoor",null,"Pollsmoor Main Gate"]
["WC","Pollsmoor",null,"Pollsmorr Remand Detention Facility"]
["WC","Southern Cape ",null,"Oudtshoorn Male Centre"]
["WC","Southern Cape ",null,"Oudtshoorn Female Centre"]
["WC","Southern Cape ",null,"George Correctional Centre"]
["WC","Southern Cape ",null,"Mosselbay Correctional Centre"]
["WC","Southern Cape ",null,"Knysna Correctional Centre"]
["WC","Southern Cape ",null,"Beaufort West Correctional Centre"]
["WC","Southern Cape ",null,"Prince Albert Correctional Centre"]
["WC","Southern Cape ",null,"Ladismith Correctional Centre"]
["WC","Southern Cape ",null,"Uniondale Correctional Centre"]
["WC","Southern Cape ",null,"Thembalethu Correctional Centre"]
["WC","Voorberg",null,"Calvinia Correctional Centre"]
["WC","Voorberg",null,"Voorberg Medium A Centre"]
["WC","Voorberg",null,"Voorberg Medium B Centre"]
["WC","Voorberg",null,"Vanrhynsdorp Correctional Centre"]
["WC","West Coast",null,"Malmesbury Medium A Centre"]
["WC","West Coast",null,"Malmesbury Remand Detention Facility"]
["WC","West Coast",null,"Riebeeckwest Correctional Centre"]

{"sheet":"EC","index":1,"n_rows":274,"n_cols":7,"rows_kept":274}
["Region","Management Area","Address per Management Area","Correctional Centre Name","TELEPHONE OPERATIONAL","TELEPHONE NOT OPERATIONAL","TELEPHONE NEEDS 2026"]
["EC","Amathole",null,"Fort Beaufort Correctional Centre",null,null,2]
["EC","Amathole",null,"Grahamstown Correctional Centre",null,null,8]
["EC","Amathole",null,"King Williams Town Correctional Centre",null,null,8]
["EC","Amathole",null,"Middledrift Correctionsl Centre",null,null,8]
["EC","Amathole",null,"Stutterheim Correctional Centre",null,null,2]
["EC","East London","Bank street, WesBank, East London","Mdantsane Correctional Centre",null,null,7]
["EC","East London",null,"East London Maximum",null,null,6]
["EC","East London",null,"East London Medium B Remand",null,null,3]
["EC","East London",null,"East London Medium C Female",null,null,16]
["EC","Kirkwood",null,"Graaffreinet Correctional Centre",null,null,4]
["EC","Kirkwood",null,"Jansenville Correctional Centre",null,null,8]
["EC","Kirkwood",null,"Kirkwood Correctional Centre",null,null,1]
["EC","Kirkwood",null,"Somerset East Correctional Centre",null,null,4]
["EC","Mthatha ",null,"Bizana Correctional Centre",null,null,1]
["EC","Mthatha ",null,"Elliotdale Correctional Centre",null,null,1]
["EC","Mthatha ",null,"Flagstaff Correctional Centre",null,null,1]
["EC","Mthatha ",null,"Lusikisiki Correctional Centre",null,null,2]
["EC","Mthatha ",null,"Mqanduli Correctional Centre",null,null,1]
["EC","Mthatha ",null,"Mt Ayliff Correctional Centre",null,null,1]
["EC","Mthatha ",null,"Mt Fletcher Correctional Centre",null,null,1]
["EC","Mthatha ",null,"Mt Frere Correctional Centre",null,null,1]
["EC","Mthatha ",null,"Mthatha Correctional Centre Medium",null,null,3]
["EC","Mthatha ",null,"Ngqeleni Correctional Centre",null,null,1]
["EC","Mthatha ",null,"Mthatha Remand Detention Facility",null,null,3]
["EC","Mthatha ",null,"Tabankulu Correctional Centre",null,null,1]
["EC","Sada ",null,"Barkly East Correctional Centre",null,null,2]
["EC","Sada ",null,"Burgersdorp Correctional Centre",null,null,7]
["EC","Sada ",null,"Butterworth Correctional Centre",null,null,2]
["EC","Sada ",null,"Cofimvaba Correctional Centre",null,null,4]
["EC","Sada ",null,"Cradock Correctional Centre",null,null,7]
["EC","Sada ",null,"Dodrecht Correctional Centre",null,null,2]
["EC","Sada ",null,"Idutywa Correctional Centre",null,null,2]
["EC","Sada ",null,"Lady Frere Correctional Centre",null,null,3]
["EC","Sada ",null,"Middelburg Correctional Centre",null,null,9]
["EC","Sada ",null,"Ngcobo Correctional Centre",null,null,2]
["EC","Sada ",null,"Nqamakwe Correctional Centre",null,null,2]
["EC","Sada ",null,"Queenstown Correctional Centre",null,null,3]
["EC","Sada ",null,"Sada Correctional Centre",null,null,6]
["EC","Sada ",null,"Sterkspruit Correctional Centre",null,null,2]
["EC","Sada ",null,"Willowvale Correctional Centre",null,null,2]
["EC","St Albans ",null," St Albans Maximum",null,null,23]
["EC","St Albans ",null,"St Albans Medium A",null,null,20]
["EC","St Albans ",null," St Albans Medium B",null,null,21]
["EC","St Albans ",null,"Patensie Correctional Centre",null,null,2]
["EC","St Albans ",null,"Port Elizabeth Correctional Centre",null,null,8]
["FS ","Bizzah Makhate",null,"Bethlehem Correctional Centre"]
["FS ","Bizzah Makhate",null,"Bizzah Makhate Correctional Centre  A"]
["FS ","Bizzah Makhate",null,"Bizzah Makhate Correctional Centre B"]
["FS ","Bizzah Makhate",null,"Bizzah Makhate Access Control Gate"]
["FS ","Bizzah Makhate",null,"Bizzah Makhate Correctional Centre C"]
["FS ","Bizzah Makhate",null,"Bizzah Makhate Correctional Centre  D"]
["FS ","Bizzah Makhate",null,"Kroonstad College"]
["FS ","Bizzah Makhate",null,"Ficksburg Correctional Centre"]
["FS ","Bizzah Makhate",null,"Harrismith Correctional Centre"]
["FS ","Bizzah Makhate",null,"Hennenman Correctional Centre"]
["FS ","Bizzah Makhate",null,"Hoopstad Correctional Centre"]
["FS ","Bizzah Makhate",null,"Kroonstad Correctional Centre"]
["FS ","Bizzah Makhate",null,"Lindley Correctional Centre"]
["FS ","Bizzah Makhate",null,"Odendaalsrus Correctional Centre"]
["FS ","Bizzah Makhate",null,"Qwaqwa Correctional Centre"]
["FS ","Bizzah Makhate",null,"Senekal Correctional Centre"]
["FS ","Bizzah Makhate",null,"Ventersburg Correctional Centre"]
["FS ","Bizzah Makhate",null,"Virginia Correctional Centre"]
["FS ","Colesberg",null,"Colesberg Correctional Centre"]
["FS ","Colesberg",null,"De Aar Correctional Centre"]
["FS ","Colesberg",null,"Hope Town Correctional Centre"]
["FS ","Colesberg",null,"Richmond Correctional Centre"]
["FS ","Colesberg",null,"Victoria West Correctional Centre"]
["FS ","Goedemoed",null,"Bethulie Correctional Centre"]
["FS ","Goedemoed",null,"Edenburg Correctional Centre"]
["FS ","Goedemoed",null,"Fauresmith Correctional Centre"]
["FS ","Goedemoed",null,"Goedemoed Correctional Centre Medium A"]
["FS ","Goedemoed",null,"Goedemoed Correctional Centre Medium B"]
["FS ","Goedemoed",null,"Zastron Correctional Centre"]
["FS ","Groenpunt",null,"Frankfort Correctional Centre"]
["FS ","Groenpunt",null,"Heilbron Correctional Centres"]
["FS ","Groenpunt",null,"Groenpunt Maximum Centre"]
["FS ","Groenpunt",null,"Groenpunt Medium Centre"]
["FS ","Groenpunt",null,"Parys Correctional Centre"]
["FS ","Groenpunt",null,"Sasolburg Correctional Centre"]
["FS ","Groenpunt",null,"Vereeniging Correctional Centre"]
["FS ","Groenpunt",null,"Groenpunt Youth Centre"]
["FS ","Grootvlei",null," Ladybrand Correctional Centre"]
["FS ","Grootvlei",null,"Boshof  Correctional Center"]
["FS ","Grootvlei",null,"Brandfort Correctional Centre"]
["FS ","Grootvlei",null,"Grootvlei Medium B Main Gate"]
["FS ","Grootvlei",null,"Grootvlei St Rose Gate"]
["FS ","Grootvlei",null,"Ladybrand Correctional Centre"]
["FS ","Grootvlei",null,"Wepener Correctional Centre"]
["FS ","Grootvlei",null,"Winburg Correctional Centre"]
["NC","Kimberley",null,"Barkley West Correctional Centre"]
["NC","Kimberley",null,"Douglas Correctional Centre"]
["NC","Kimberley",null,"Kimberley Area Commissioners Office"]
["NC","Kimberley",null,"Kimberley Correctional Centre"]
["NC","Kimberley",null,"Tswelopele Correctional Centre"]
["NC","Upington",null,"Kuruman Correctional Centre"]
["NC","Upington",null,"Springbok Correctional Centre"]
["NC","Upington",null,"Upington Correctional Centre",16,3]
["GP","Baviaanspoort",null,"Area Commissioner Main Gate"]
["GP","Baviaanspoort",null,"Baviaanspoort Emthonjeni Correctional Centre"]
["GP","Baviaanspoort",null,"Baviaanspoort Maximum Centre"]
["GP","Baviaanspoort",null,"Baviaanspoort Medium Centre"]
["GP","Boksburg",null,"Boksburg Area Commissioner Main Gate1"]
["GP","Boksburg",null,"Boksburg Correctional Centre Medium A "]
["GP","Boksburg",null,"Boksburg Correctional Centre Medium B "]
["GP","Boksburg",null,"Heidelberg Correctional Centre"]
["GP","Johannesburg",null,"Ac Corp Service Main Gate1"]
["GP","Johannesburg",null,"Ac Corrections Main Gate2"]
["GP","Johannesburg",null,"Johannesburg Female"]
["GP","Johannesburg",null,"Johannesburg Correctional Centre Medium A"]
["GP","Johannesburg",null,"Johannesburg Correctional Centre Medium B"]
["GP","Johannesburg",null,"Johannesburg Correctional Centre Medium C"]
["GP","Kgoši Mamapuru II",null,"Ac Corrections Main Gate1"]
["GP","Kgoši Mamapuru II",null,"Kmii Cmax"]
["GP","Kgoši Mamapuru II",null,"Atteridgeville Correctional Centre"]
["GP","Kgoši Mamapuru II",null,"Kmii Central"]
["GP","Kgoši Mamapuru II",null,"Kmii Female "]
["GP","Kgoši Mamapuru II",null,"Kmii Local "]
["GP","Kgoši Mamapuru II",null,"Odi Correctional Centre "]
["GP","Kgoši Mamapuru II",null,"Kmii Main Gate2"]
["GP","Krugersdorp",null,"Ac Corrections Main Gate"]
["GP","Leeuwkop",null,"Leeuwkop Max Centre"]
["GP","Leeuwkop",null,"Leeuwkop  Medium B Centre"]
["GP","Leeuwkop",null,"Leeuwkop Corporate Services Main Gate2"]
["GP","Leeuwkop",null,"Leeuwkop Corrections Main Gate1"]
["GP","Leeuwkop",null,"Leeuwkop Medium A Centre"]
["GP","Leeuwkop",null,"Leeuwkop Medium C Centre"]
["GP","Modderbee",null,"Modderbee Ac Corrections Main Gate"]
["GP","Modderbee",null,"Devon Correctional Centre "]
["GP","Modderbee",null,"Modderbee Correctional Centre"]
["GP","Modderbee",null,"Nigel Correctional Centre"]
["GP","Pretoria",null,"Hatfield Regional Office"]
["GP","Zonderwater",null,"Zonderwater Main Gate"]
["GP","Zonderwater",null,"Cullinan Correctional Centre"]
["GP","Zonderwater",null,"Zonderwater Medium A Centre"]
["GP","Zonderwater",null,"Zonderwater Medium B Centre"]
["GP","Zonderwater",null,"Zonderwater College"]
["KZN","Durban",null,"Durban Community Corrections"]
["KZN","Durban",null,"Durban Westville Female Centre"]
["KZN","Durban",null,"Durban Westville Medium A Centre"]
["KZN","Durban",null,"Durban Westville Medium B Centre"]
["KZN","Durban",null,"Durban Westvile Medium C Centre"]
["KZN","Durban",null,"Mzinto Correctional Centre"]
["KZN","Durban",null,"Durban Westville Youth Centre"]
["KZN","Empangeni",null,"Empangeni Medium Centre"]
["KZN","Empangeni",null,"Eshowe Correctional Centre"]
["KZN","Empangeni",null,"Ingwavuma Correctional Centre"]
["KZN","Empangeni",null,"Maphumulo Correctional Centre"]
["KZN","Empangeni",null,"Mtunzini Correctional Centre"]
["KZN","Empangeni",null,"Qalakabusha Correctional Centre"]
["KZN","Empangeni",null,"Stanger Correctional Centre"]
["KZN","Glencoe",null,"Bergville Correctional Centre"]
["KZN","Glencoe",null,"Dundee Correctional Centre"]
["KZN","Glencoe",null,"Escourt Correctional Centre"]
["KZN","Glencoe",null,"Glencoe Correctional Centre"]
["KZN","Glencoe",null,"Greytown Correctional Centre"]
["KZN","Glencoe",null,"Kranskop Correctional Centre"]
["KZN","Glencoe",null,"Ladysmith Correctional Centre"]
["KZN","Glencoe",null,"Pomeroy Correctional Centre"]
["KZN","Kokstad",null,"Ebongweni"]
["KZN","Kokstad",null,"Kokstad Medium"]
["KZN","Kokstad",null,"Matatiele"]
["KZN","Kokstad",null,"Mzimkhulu"]
["KZN","Kokstad",null,"Port Shepstone"]
["KZN","Ncome",null,"Ncome Medium A"]
["KZN","Ncome",null,"Ncome Medium B"]
["KZN","Ncome",null,"Nkandla Correctional Centre"]
["KZN","Ncome",null,"Nongoma Correctional Centre"]
["KZN","Ncome",null,"Nquthu Correctional Centre"]
["KZN","Ncome",null,"Vryheid Correctional Centre"]
["KZN","Pietermaritzburg",null,"New Hanover Correctional Centre"]
["KZN","Pietermaritzburg",null,"Ixhopho"]
["KZN","Pietermaritzburg",null,"Pietermaritzburg Medium A"]
["KZN","Pietermaritzburg",null,"Pietermaritzburg Medium B"]
["KZN","Pietermaritzburg",null,"Pietermaritzburg Regional Office"]
["KZN","Pietermaritzburg",null,"Sevontein Correctional Centre"]
["KZN","Waterval",null,"Ekuseni"]
["KZN","Waterval",null,"Waterval Medium A"]
["KZN","Waterval",null,"Waterval Medium B"]
["KZN","Waterval",null,"Newcastle "]
["KZN","Waterval",null,"Utrecht"]
["MP","Barberton",null,"Barberton Ac Office"]
["MP","Barberton",null,"Barberton Maximum"]
["MP","Barberton",null,"Barberton Medium A"]
["MP","Barberton",null,"Barberton Medium B"]
["MP","Barberton",null,"Barberton Town Youth"]
["MP","Barberton",null,"Lydenburg Correctional Centre"]
["MP","Barberton",null,"Nelspruit Correctional Centre"]
["MP","Bethal",null,"Bethal Correctional Centre "]
["MP","Bethal",null,"Ermelo Centre Of Excellence"]
["MP","Bethal",null,"Piet Retief Correctional Centre"]
["MP","Bethal",null,"Volksrust Correctional Centre"]
["MP","Bethal",null,"Standerton Correctional Centre"]
["NW","Klerksdorp",null,"Christiana Correctional Centre"]
["NW","Klerksdorp",null,"Klerksdorp Correctional Centre"]
["NW","Klerksdorp",null,"Potchefstroom Correctional Cntre"]
["NW","Klerksdorp",null,"Wolmaransstad Correctional Centre"]
["LMP","Polokwanwe",null,"Polokwane Correctional Centre"]
["LMP","Polokwanwe",null,"Modimolle Correctional Centre"]
["LMP","Polokwanwe",null,"Tzaneen Correctional Centre"]
["NW","Rooigrond",null,"Rooigrond Correctional Centre Medium A "]
["NW","Rooigrond",null,"Rooigrond Correctional Centre Medium B"]
["NW","Rooigrond",null,"Zeerust Correctional Centre"]
["NW","Rooigrond",null,"Lichtenburg Correctional Centre"]
["NW","Rooigrond",null,"Mafikeng Correctional Centre"]
["NW","Rustenburg",null,"Brits Correctional Service"]
["NW","Rustenburg",null,"Losperfontein Correctional Service"]
["NW","Rustenburg",null,"Mogwase Correctional Service"]
["NW","Rustenburg",null,"Rustenburg Area Commissioner Office"]
["NW","Rustenburg",null,"Rustenburg Centre Of Excellence"]
["NW","Rustenburg",null,"Rustenburg Medium A"]
["LMP","Thohoyandou",null,"Makhado Correctional Centre Gate"]
["LMP","Thohoyandou",null,"Thohoyandou Medium B Gate"]
["LMP","Thohoyandou",null,"Thohoyandoufemale & Juvenile Gate"]
["LMP","Thohoyandou",null,"Thohoyandou Medium A Gate"]
["MP","Witbank",null,"Witbank Ac Office"]
["MP","Witbank",null,"Witbank New Coorectional Centre"]
["MP","Witbank",null,"Witbank Main Gate"]
["MP","Witbank",null,"Middelburg Correctional Centre"]
["MP","Witbank",null,"Belfast Correctional Centre"]
["MP","Witbank",null,"Carolina Correctional Centre"]
["MP","Witbank",null,"Witbank Correctional Centre Hr Office"]
["WC","Allandale",null,"Allandale Area Commissioner"]
["WC","Allandale",null,"Allandale Correctional Services"]
["WC","Allandale",null,"Paarderberg Correctional Services"]
["WC","Allandale",null,"Hawequa Correctional Services"]
["WC","Allandale",null,"Obiqua Correcctional Service"]
["WC","Brandvlei",null,"Brandvlei Access Control"]
["WC","Brandvlei",null,"Brandvlei Maximum"]
["WC","Brandvlei",null,"Brandvlei Medium"]
["WC","Brandvlei",null,"Brandvlei Youth"]
["WC","Brandvlei",null,"Brandvlei Area Commissioners Office"]
["WC","Breede River",null,"Robertson Correctional Centre"]
["WC","Breede River",null,"Warmbokkeveld Correctional Centre"]
["WC","Breede River",null,"Dwarsrivier Correctional Centre"]
["WC","Breede River",null,"Worcester Female Centre"]
["WC","Breede River ",null,"Worcester Male Centre"]
["WC","Drakenstein",null,"Drakenstein Maximum Centre"]
["WC","Drakenstein",null,"Drakenstein Medium A Centre"]
["WC","Drakenstein",null,"Stellenbosch Correctional Centre"]
["WC","Drakenstein ",null,"Drakenstein Medium B  Youth Centre"]
["WC","Goodwood",null,"Goodwood Correctional Services Main Gate"]
["WC","Goodwood",null,"Goodwood Correctional Services"]
["WC","Overberg",null,"Overberg Area Correctional Office"]
["WC","Overberg",null,"Buffeljagsrivier Correctional Service"]
["WC","Overberg",null,"Caledon Remand Detention Facility"]
["WC","Overberg",null,"Helderstroom Maximum Centre"]
["WC","Overberg",null,"Helderstroom Medium Centre"]
["WC","Pollsmoor",null,"Pollsmoor Female"]
["WC","Pollsmoor",null,"Pollsmoor Medium A"]
["WC","Pollsmoor",null,"Pollsmoor Medium B"]
["WC","Pollsmoor",null,"Pollsmoor Medium C"]
["WC","Pollsmoor",null,"Pollsmoor Main Gate"]
["WC","Pollsmoor",null,"Pollsmorr Remand Detention Facility"]
["WC","Southern Cape ",null,"Oudtshoorn Male Centre"]
["WC","Southern Cape ",null,"Oudtshoorn Female Centre"]
["WC","Southern Cape ",null,"George Correctional Centre"]
["WC","Southern Cape ",null,"Mosselbay Correctional Centre"]
["WC","Southern Cape ",null,"Knysna Correctional Centre"]
["WC","Southern Cape ",null,"Beaufort West Correctional Centre"]
["WC","Southern Cape ",null,"Prince Albert Correctional Centre"]
["WC","Southern Cape ",null,"Ladismith Correctional Centre"]
["WC","Southern Cape ",null,"Uniondale Correctional Centre"]
["WC","Southern Cape ",null,"Thembalethu Correctional Centre"]
["WC","Voorberg",null,"Calvinia Correctional Centre"]
["WC","Voorberg",null,"Voorberg Medium A Centre"]
["WC","Voorberg",null,"Voorberg Medium B Centre"]
["WC","Voorberg",null,"Vanrhynsdorp Correctional Centre"]
["WC","West Coast",null,"Malmesbury Medium A Centre"]
["WC","West Coast",null,"Malmesbury Remand Detention Facility"]
["WC","West Coast",null,"Riebeeckwest Correctional Centre"]
[{"$nulls":6},222]
[null,"NB: Quanties are based on estimates and subject to change/s . "]

{"sheet":"FSNC","index":2,"n_rows":270,"n_cols":7,"rows_kept":270}
["Region","Management Area","Address per Management Area","Correctional Centre Name","TELEPHONE OPERATIONAL","TELEPHONE NOT OPERATIONAL","TELEPHONE NEEDS 2026"]
["EC","Amathole",null,"Fort Beaufort Correctional Centre"]
["EC","Amathole",null,"Grahamstown Correctional Centre"]
["EC","Amathole",null,"King Williams Town Correctional Centre"]
["EC","Amathole",null,"Middledrift Correctionsl Centre"]
["EC","Amathole",null,"Stutterheim Correctional Centre"]
["EC","East London","Bank street, WesBank, East London","East London Parole Board"]
["EC","East London",null,"Mdantsane Correctional Centre"]
["EC","East London",null,"East London Maximum"]
["EC","East London",null,"East London Medium B Remand"]
["EC","East London",null,"East London Medium C Female"]
["EC","Kirkwood",null,"Graaffreinet Correctional Centre"]
["EC","Kirkwood",null,"Jansenville Correctional Centre"]
["EC","Kirkwood",null,"Kirkwood Correctional Centre"]
["EC","Kirkwood",null,"Somerset East Correctional Centre"]
["EC","Mthatha ",null,"Bizana Correctional Centre"]
["EC","Mthatha ",null,"Elliotdale Correctional Centre"]
["EC","Mthatha ",null,"Flagstaff Correctional Centre"]
["EC","Mthatha ",null,"Lusikisiki Correctional Centre"]
["EC","Mthatha ",null,"Mqanduli Correctional Centre"]
["EC","Mthatha ",null,"Mt Ayliff Correctional Centre"]
["EC","Mthatha ",null,"Mt Fletcher Correctional Centre"]
["EC","Mthatha ",null,"Mt Frere Correctional Centre"]
["EC","Mthatha ",null,"Mthatha Correctional Centre Medium"]
["EC","Mthatha ",null,"Ngqeleni Correctional Centre"]
["EC","Mthatha ",null,"Mthatha Remand Detention Facility"]
["EC","Mthatha ",null,"Tabankulu Correctional Centre"]
["EC","Sada ",null,"Barkly East Correctional Centre"]
["EC","Sada ",null,"Burgersdorp Correctional Centre"]
["EC","Sada ",null,"Butterworth Correctional Centre"]
["EC","Sada ",null,"Cofimvaba Correctional Centre"]
["EC","Sada ",null,"Cradock Correctional Centre"]
["EC","Sada ",null,"Dodrecht Correctional Centre"]
["EC","Sada ",null,"Idutywa Correctional Centre"]
["EC","Sada ",null,"Lady Frere Correctional Centre"]
["EC","Sada ",null,"Middelburg Correctional Centre"]
["EC","Sada ",null,"Ngcobo Correctional Centre"]
["EC","Sada ",null,"Nqamakwe Correctional Centre"]
["EC","Sada ",null,"Queenstown Correctional Centre"]
["EC","Sada ",null,"Sada Correctional Centre"]
["EC","Sada ",null,"Sterkspruit Correctional Centre"]
["EC","Sada ",null,"Willowvale Correctional Centre"]
["EC","St Albans ",null,"St Albans Area Office"]
["EC","St Albans ",null,"Humansdorp Community Corrections"]
["EC","St Albans ",null," St Albans Maximum"]
["EC","St Albans ",null,"St Albans Medium A"]
["EC","St Albans ",null," St Albans Medium B"]
["EC","St Albans ",null,"Patensie Correctional Centre"]
["EC","St Albans ",null,"Port Elizabeth Correctional Centre"]
["GP","Baviaanspoort"]
["GP","Baviaanspoort"]
["GP","Baviaanspoort"]
["GP","Baviaanspoort"]
["GP","Boksburg",{"$nulls":3},17]
["GP","Boksburg",{"$nulls":3}," "]
["GP","Boksburg",{"$nulls":3}," "]
["GP","Boksburg",{"$nulls":3}," "]
["GP","Johannesburg",{"$nulls":3},12]
["GP","Johannesburg",{"$nulls":3}," "]
["GP","Johannesburg",{"$nulls":3}," "]
["GP","Johannesburg",{"$nulls":3}," "]
["GP","Johannesburg",{"$nulls":3}," "]
["GP","Johannesburg",{"$nulls":3},10]
["GP","Kgoši Mamapuru II",{"$nulls":3}," "]
["GP","Kgoši Mamapuru II",{"$nulls":3}," "]
["GP","Kgoši Mamapuru II",{"$nulls":3},3]
["GP","Kgoši Mamapuru II",{"$nulls":3}," "]
["GP","Kgoši Mamapuru II",{"$nulls":3}," "]
["GP","Kgoši Mamapuru II",{"$nulls":3},"20 handset needed, network installed"]
["GP","Kgoši Mamapuru II",{"$nulls":3},"6handset needed, network installed"]
["GP","Kgoši Mamapuru II",{"$nulls":3},"4 handset needed, network installed"]
["GP","Krugersdorp",{"$nulls":3},"29 handset needed, network installed"]
["GP","Leeuwkop",{"$nulls":3},"1 handset needed, network installed"]
["GP","Leeuwkop",{"$nulls":3},"6 handset needed, network installed"]
["GP","Leeuwkop",{"$nulls":3},"7 handset needed, network installed"]
["GP","Leeuwkop",{"$nulls":3},"5 handset needed, network installed"]
["GP","Leeuwkop",{"$nulls":3},"2 handset needed, network installed"]
["GP","Leeuwkop",{"$nulls":3},"5 handset needed, network installed"]
["GP","Modderbee",{"$nulls":3},"0 handset needed, network installed"]
["GP","Modderbee",{"$nulls":3},"4handset needed, network installed"]
["GP","Modderbee",{"$nulls":3},"4 handset needed, network installed"]
["GP","Modderbee",{"$nulls":3},"13 handset needed, network installed"]
["GP","Pretoria",{"$nulls":3},"2 handset needed, network installed"]
["GP","Zonderwater",{"$nulls":3},"4 handset needed, network installed"]
["GP","Zonderwater",{"$nulls":3},"0 handset needed, network installed"]
["GP","Zonderwater",{"$nulls":3},"6 handset needed, network installed"]
["GP","Zonderwater",{"$nulls":3},"7 handset needed, network installed"]
["GP","Zonderwater",{"$nulls":3},"0 handset needed, network installed"]
["KZN","Durban",{"$nulls":3},82]
["KZN","Durban"]
["KZN","Durban"]
["KZN","Durban"]
["KZN","Durban"]
["KZN","Durban"]
["KZN","Durban"]
["KZN","Empangeni"]
["KZN","Empangeni"]
["KZN","Empangeni"]
["KZN","Empangeni"]
["KZN","Empangeni"]
["KZN","Empangeni"]
["KZN","Empangeni"]
["KZN","Glencoe"]
["KZN","Glencoe"]
["KZN","Glencoe"]
["KZN","Glencoe"]
["KZN","Glencoe"]
["KZN","Glencoe"]
["KZN","Glencoe"]
["KZN","Glencoe"]
["KZN","Kokstad"]
["KZN","Kokstad"]
["KZN","Kokstad"]
["KZN","Kokstad"]
["KZN","Kokstad"]
["KZN","Ncome"]
["KZN","Ncome"]
["KZN","Ncome"]
["KZN","Ncome"]
["KZN","Ncome"]
["KZN","Ncome"]
["KZN","Pietermaritzburg"]
["KZN","Pietermaritzburg"]
["KZN","Pietermaritzburg"]
["KZN","Pietermaritzburg"]
["KZN","Pietermaritzburg"]
["KZN","Pietermaritzburg"]
["KZN","Waterval"]
["KZN","Waterval"]
["KZN","Waterval"]
["KZN","Waterval"]
["KZN","Waterval"]
["MP","Barberton"]
["MP","Barberton"]
["MP","Barberton"]
["MP","Barberton"]
["MP","Barberton"]
["MP","Barberton"]
["MP","Barberton"]
["MP","Bethal"]
["MP","Bethal"]
["MP","Bethal"]
["MP","Bethal"]
["MP","Bethal"]
["NW","Klerksdorp"]
["NW","Klerksdorp"]
["NW","Klerksdorp"]
["NW","Klerksdorp"]
["LMP","Polokwanwe"]
["LMP","Polokwanwe"]
["LMP","Polokwanwe"]
["NW","Rooigrond"]
["NW","Rooigrond"]
["NW","Rooigrond"]
["NW","Rooigrond"]
["NW","Rooigrond"]
["NW","Rustenburg"]
["NW","Rustenburg"]
["NW","Rustenburg"]
["NW","Rustenburg"]
["NW","Rustenburg"]
["NW","Rustenburg"]
["LMP","Thohoyandou"]
["LMP","Thohoyandou"]
["LMP","Thohoyandou"]
["LMP","Thohoyandou"]
["MP","Witbank"]
["MP","Witbank"]
["MP","Witbank"]
["MP","Witbank"]
["MP","Witbank"]
["MP","Witbank"]
["MP","Witbank"]
["WC","Allandale"]
["WC","Allandale"]
["WC","Allandale"]
["WC","Allandale"]
["WC","Allandale"]
["WC","Brandvlei"]
["WC","Brandvlei"]
["WC","Brandvlei"]
["WC","Brandvlei"]
["WC","Brandvlei"]
["WC","Breede River"]
["WC","Breede River"]
["WC","Breede River"]
["WC","Breede River"]
["WC","Breede River "]
["WC","Drakenstein"]
["WC","Drakenstein"]
["WC","Drakenstein"]
["WC","Drakenstein "]
["WC","Goodwood"]
["WC","Goodwood"]
["WC","Overberg"]
["WC","Overberg"]
["WC","Overberg"]
["WC","Overberg"]
["WC","Overberg"]
["WC","Pollsmoor"]
["WC","Pollsmoor"]
["WC","Pollsmoor"]
["WC","Pollsmoor"]
["WC","Pollsmoor"]
["WC","Pollsmoor"]
["WC","Southern Cape "]
["WC","Southern Cape "]
["WC","Southern Cape "]
["WC","Southern Cape "]
["WC","Southern Cape "]
["WC","Southern Cape "]
["WC","Southern Cape "]
["WC","Southern Cape "]
["WC","Southern Cape "]
["WC","Southern Cape "]
["WC","Voorberg"]
["WC","Voorberg"]
["WC","Voorberg"]
["WC","Voorberg"]
["WC","West Coast"]
["WC","West Coast"]
["WC","West Coast"]
["FS","Goedemoed ",null,"Medium A",1,4,5]
["FS","Goedemoed ",null,"Medium B",1,4,5]
["FS","Goedemoed ",null,"Zastron",0,1,1]
["FS","Goedemoed ",null,"Fauresmith",0,1,1]
["FS","Goedemoed ",null,"Edenburg",0,1,1]
["FS","Goedemoed ",null,"Bethulie",0,1,1]
["NC","Colesberg","Petrus Willt Road Colesburg","Colesberg",0,6,6]
["NC","Colesberg","Grobler St 41","De Aar",0,4,4]
["NC","Colesberg","01 River Street Victoria West","Victoria West",0,4,4]
["NC","Colesberg","2 Mark St","Richmond",0,2,2]
["NC","Colesberg","Viib Street, Hopetown, Northern Cape, 8750","Hopetown",0,2,2]
["FS ","Bizzah Makhate","NO 19 END OF LAKSMAN STREET, WESTERSON,HARRISMITH,9880","HARRISMITH PRISON",0,5,5]
["FS ","Bizzah Makhate","95 president boshoff str bethlehem,9702","BETHLEHEM PRISON",0,5,5]
["FS ","Bizzah Makhate","2 fontein street, lindley","LINDLEY PRISON",0,1,1]
["FS ","Bizzah Makhate","AD KEET STR, SENEKAL ","SENEKAL PRISON",0,2,2]
["FS ","Bizzah Makhate","36 bauman street, hoopstad","HOOPSTAD PRISON",0,1,1]
["FS ","Bizzah Makhate","cnr black wood and cr swartz street,ventersburg","VENTERSBURG PRISON",0,3,3]
["FS ","Bizzah Makhate","cnr ericka freezia, odendaalsrus","ODENDAALSRUS PRISON",0,4,4]
["FS ","bizzah makhate","cnr of voorstrekker and torsiouse street , hennenman","HENNENMAN PRISON",0,3,3]
["FS ","Bizzah Makhate",null,"VIRGINIA PRISON",null,null,0]
["FS ","Bizzah Makhate","Britz street, kroonstad","CENTRE A",0,8,8]
["FS ","Bizzah Makhate","Britz street, kroonstad","CENTRE B",null,null,0]
["FS ","Bizzah Makhate","Britz street, kroonstad","CENTRE C",0,2,2]
["FS ","Bizzah Makhate","Britz street, kroonstad","CENTRE D",0,1,1]
["FS ","BIZZAH makhate","63 feld street, ficksburg 9730","FICKSBURG PRISON",0,1,1]
["NC","Upington",null,"Springbok Centre",0,3,3]
["NC","Upington",null,"Kuruman Centre",2,6,8]
["NC","Upington",null,"Upington Centre",0,2,2]
["FS ","Kimberley",null,"Tswelopele",0,48,48]
["FS ","Kimberley",null,"Kimberley Centre",0,18,18]
["FS ","Kimberley",null,"Douglas Centre",0,8,8]
["FS","GROOTVLEI","R702 Dewertsdorp Road, Bloemfontein, 9301","Grootvlei Medium A",0,16,16]
["FS","GROOTVLEI","R702 Dewertsdorp Road, Bloemfontein, 9301","Grootvlei Medium B",0,4,4]
["FS","GROOTVLEI","R702 Dewertsdorp Road, Bloemfontein, 9301","Boshoff Correctional Centre",0,2,2]
["FS","GROOTVLEI","R702 Dewertsdorp Road, Bloemfontein, 9301","Brandfort Correctional Centre",0,2,2]
["FS","GROOTVLEI","R702 Dewertsdorp Road, Bloemfontein, 9301","Ladybrand Correctional Centre",0,2,2]
["FS","GROOTVLEI","R702 Dewertsdorp Road, Bloemfontein, 9301","Wepener Correctional Centre",0,2,2]
["FS","GROOTVLEI","R702 Dewertsdorp Road, Bloemfontein, 9301","Winburg Correctional Centre",0,3,3]
["FS ","Groenpunt ","R716 Deneysville Road Vereeninging ","Maximum ",2,4,6]
["FS ","Groenpunt ",null,"Meduim ",4,2,6]
["FS ","Groenpunt ",null,"Youth ",1,3,4]
["FS ","Groenpunt ","57 LAGER STREET VEREENIGING ","Vereeniging ",0,14,14]
["FS ","Groenpunt ","3 De Villiers Street ","Frankfort",2,1,3]
["FS ","Groenpunt ","75 Wright Street ","Heilbron",1,1,2]
["FS ","Groenpunt ","Corner klassie Havenga & stead street","Sasolburg ",0,3,3]
["NC","Groenpunt ",null,"Paryse","under constraction","under constraction",3]
[{"$nulls":6},{"$f":"SUBTOTAL(9,G223:G268)","v":227}]
[null,"NB: Quanties are based on estimates and subject to change/s . "]

{"sheet":"LMN","index":3,"n_rows":273,"n_cols":7,"rows_kept":273}
["Region","Management Area","Address per Management Area","Correctional Centre Name","TELEPHONE OPERATIONAL","TELEPHONE NOT OPERATIONAL","TELEPHONE NEEDS 2026"]
["EC","Amathole",null,"Fort Beaufort Correctional Centre"]
["EC","Amathole",null,"Grahamstown Correctional Centre"]
["EC","Amathole",null,"King Williams Town Correctional Centre"]
["EC","Amathole",null,"Middledrift Correctionsl Centre"]
["EC","Amathole",null,"Stutterheim Correctional Centre"]
["EC","East London","Bank street, WesBank, East London","East London Parole Board"]
["EC","East London",null,"Mdantsane Correctional Centre"]
["EC","East London",null,"East London Maximum"]
["EC","East London",null,"East London Medium B Remand"]
["EC","East London",null,"East London Medium C Female"]
["EC","Kirkwood",null,"Graaffreinet Correctional Centre"]
["EC","Kirkwood",null,"Jansenville Correctional Centre"]
["EC","Kirkwood",null,"Kirkwood Correctional Centre"]
["EC","Kirkwood",null,"Somerset East Correctional Centre"]
["EC","Mthatha ",null,"Bizana Correctional Centre"]
["EC","Mthatha ",null,"Elliotdale Correctional Centre"]
["EC","Mthatha ",null,"Flagstaff Correctional Centre"]
["EC","Mthatha ",null,"Lusikisiki Correctional Centre"]
["EC","Mthatha ",null,"Mqanduli Correctional Centre"]
["EC","Mthatha ",null,"Mt Ayliff Correctional Centre"]
["EC","Mthatha ",null,"Mt Fletcher Correctional Centre"]
["EC","Mthatha ",null,"Mt Frere Correctional Centre"]
["EC","Mthatha ",null,"Mthatha Correctional Centre Medium"]
["EC","Mthatha ",null,"Ngqeleni Correctional Centre"]
["EC","Mthatha ",null,"Mthatha Remand Detention Facility"]
["EC","Mthatha ",null,"Tabankulu Correctional Centre"]
["EC","Sada ",null,"Barkly East Correctional Centre"]
["EC","Sada ",null,"Burgersdorp Correctional Centre"]
["EC","Sada ",null,"Butterworth Correctional Centre"]
["EC","Sada ",null,"Cofimvaba Correctional Centre"]
["EC","Sada ",null,"Cradock Correctional Centre"]
["EC","Sada ",null,"Dodrecht Correctional Centre"]
["EC","Sada ",null,"Idutywa Correctional Centre"]
["EC","Sada ",null,"Lady Frere Correctional Centre"]
["EC","Sada ",null,"Middelburg Correctional Centre"]
["EC","Sada ",null,"Ngcobo Correctional Centre"]
["EC","Sada ",null,"Nqamakwe Correctional Centre"]
["EC","Sada ",null,"Queenstown Correctional Centre"]
["EC","Sada ",null,"Sada Correctional Centre"]
["EC","Sada ",null,"Sterkspruit Correctional Centre"]
["EC","Sada ",null,"Willowvale Correctional Centre"]
["EC","St Albans ",null,"St Albans Area Office"]
["EC","St Albans ",null,"Humansdorp Community Corrections"]
["EC","St Albans ",null," St Albans Maximum"]
["EC","St Albans ",null,"St Albans Medium A"]
["EC","St Albans ",null," St Albans Medium B"]
["EC","St Albans ",null,"Patensie Correctional Centre"]
["EC","St Albans ",null,"Port Elizabeth Correctional Centre"]
["FS ","Bizzah Makhate",null,"Bethlehem Correctional Centre"]
["FS ","Bizzah Makhate",null,"Bizzah Makhate Correctional Centre  A"]
["FS ","Bizzah Makhate",null,"Bizzah Makhate Correctional Centre B"]
["FS ","Bizzah Makhate",null,"Bizzah Makhate Access Control Gate"]
["FS ","Bizzah Makhate",null,"Bizzah Makhate Correctional Centre C"]
["FS ","Bizzah Makhate",null,"Bizzah Makhate Correctional Centre  D"]
["FS ","Bizzah Makhate",null,"Kroonstad College"]
["FS ","Bizzah Makhate",null,"Ficksburg Correctional Centre"]
["FS ","Bizzah Makhate",null,"Harrismith Correctional Centre"]
["FS ","Bizzah Makhate",null,"Hennenman Correctional Centre"]
["FS ","Bizzah Makhate",null,"Hoopstad Correctional Centre"]
["FS ","Bizzah Makhate",null,"Kroonstad Correctional Centre"]
["FS ","Bizzah Makhate",null,"Lindley Correctional Centre"]
["FS ","Bizzah Makhate",null,"Odendaalsrus Correctional Centre"]
["FS ","Bizzah Makhate",null,"Qwaqwa Correctional Centre"]
["FS ","Bizzah Makhate",null,"Senekal Correctional Centre"]
["FS ","Bizzah Makhate",null,"Ventersburg Correctional Centre"]
["FS ","Bizzah Makhate",null,"Virginia Correctional Centre"]
["FS ","Colesberg",null,"Colesberg Correctional Centre"]
["FS ","Colesberg",null,"De Aar Correctional Centre"]
["FS ","Colesberg",null,"Hope Town Correctional Centre"]
["FS ","Colesberg",null,"Richmond Correctional Centre"]
["FS ","Colesberg",null,"Victoria West Correctional Centre"]
["FS ","Goedemoed",null,"Bethulie Correctional Centre"]
["FS ","Goedemoed",null,"Edenburg Correctional Centre"]
["FS ","Goedemoed",null,"Fauresmith Correctional Centre"]
["FS ","Goedemoed",null,"Goedemoed Correctional Centre Medium A"]
["FS ","Goedemoed",null,"Goedemoed Correctional Centre Medium B"]
["FS ","Goedemoed",null,"Zastron Correctional Centre"]
["FS ","Groenpunt",null,"Frankfort Correctional Centre"]
["FS ","Groenpunt",null,"Heilbron Correctional Centres"]
["FS ","Groenpunt",null,"Groenpunt Maximum Centre"]
["FS ","Groenpunt",null,"Groenpunt Medium Centre"]
["FS ","Groenpunt",null,"Parys Correctional Centre"]
["FS ","Groenpunt",null,"Sasolburg Correctional Centre"]
["FS ","Groenpunt",null,"Vereeniging Correctional Centre"]
["FS ","Groenpunt",null,"Groenpunt Youth Centre"]
["FS ","Grootvlei",null," Ladybrand Correctional Centre"]
["FS ","Grootvlei",null,"Boshof  Correctional Center"]
["FS ","Grootvlei",null,"Brandfort Correctional Centre"]
["FS ","Grootvlei",null,"Grootvlei Medium B Main Gate"]
["FS ","Grootvlei",null,"Grootvlei St Rose Gate"]
["FS ","Grootvlei",null,"Ladybrand Correctional Centre"]
["FS ","Grootvlei",null,"Wepener Correctional Centre"]
["FS ","Grootvlei",null,"Winburg Correctional Centre"]
["NC","Kimberley",null,"Barkley West Correctional Centre"]
["NC","Kimberley",null,"Douglas Correctional Centre"]
["NC","Kimberley",null,"Kimberley Area Commissioners Office"]
["NC","Kimberley",null,"Kimberley Correctional Centre"]
["NC","Kimberley",null,"Tswelopele Correctional Centre"]
["NC","Upington",null,"Kuruman Correctional Centre"]
["NC","Upington",null,"Springbok Correctional Centre"]
["NC","Upington",null,"Upington Correctional Centre",16,3]
["GP","Baviaanspoort",null,"Area Commissioner Main Gate"]
["GP","Baviaanspoort",null,"Baviaanspoort Emthonjeni Correctional Centre"]
["GP","Baviaanspoort",null,"Baviaanspoort Maximum Centre"]
["GP","Baviaanspoort",null,"Baviaanspoort Medium Centre"]
["GP","Boksburg",null,"Boksburg Area Commissioner Main Gate1"]
["GP","Boksburg",null,"Boksburg Correctional Centre Medium A "]
["GP","Boksburg",null,"Boksburg Correctional Centre Medium B "]
["GP","Boksburg",null,"Heidelberg Correctional Centre"]
["GP","Johannesburg",null,"Ac Corp Service Main Gate1"]
["GP","Johannesburg",null,"Ac Corrections Main Gate2"]
["GP","Johannesburg",null,"Johannesburg Female"]
["GP","Johannesburg",null,"Johannesburg Correctional Centre Medium A"]
["GP","Johannesburg",null,"Johannesburg Correctional Centre Medium B"]
["GP","Johannesburg",null,"Johannesburg Correctional Centre Medium C"]
["GP","Kgoši Mamapuru II",null,"Ac Corrections Main Gate1"]
["GP","Kgoši Mamapuru II",null,"Kmii Cmax"]
["GP","Kgoši Mamapuru II",null,"Atteridgeville Correctional Centre"]
["GP","Kgoši Mamapuru II",null,"Kmii Central"]
["GP","Kgoši Mamapuru II",null,"Kmii Female "]
["GP","Kgoši Mamapuru II",null,"Kmii Local "]
["GP","Kgoši Mamapuru II",null,"Odi Correctional Centre "]
["GP","Kgoši Mamapuru II",null,"Kmii Main Gate2"]
["GP","Krugersdorp",null,"Ac Corrections Main Gate"]
["GP","Leeuwkop",null,"Leeuwkop Max Centre"]
["GP","Leeuwkop",null,"Leeuwkop  Medium B Centre"]
["GP","Leeuwkop",null,"Leeuwkop Corporate Services Main Gate2"]
["GP","Leeuwkop",null,"Leeuwkop Corrections Main Gate1"]
["GP","Leeuwkop",null,"Leeuwkop Medium A Centre"]
["GP","Leeuwkop",null,"Leeuwkop Medium C Centre"]
["GP","Modderbee",null,"Modderbee Ac Corrections Main Gate"]
["GP","Modderbee",null,"Devon Correctional Centre "]
["GP","Modderbee",null,"Modderbee Correctional Centre"]
["GP","Modderbee",null,"Nigel Correctional Centre"]
["GP","Pretoria",null,"Hatfield Regional Office"]
["GP","Zonderwater",null,"Zonderwater Main Gate"]
["GP","Zonderwater",null,"Cullinan Correctional Centre"]
["GP","Zonderwater",null,"Zonderwater Medium A Centre"]
["GP","Zonderwater",null,"Zonderwater Medium B Centre"]
["GP","Zonderwater",null,"Zonderwater College"]
["KZN","Durban",null,"Durban Community Corrections"]
["KZN","Durban",null,"Durban Westville Female Centre"]
["KZN","Durban",null,"Durban Westville Medium A Centre"]
["KZN","Durban",null,"Durban Westville Medium B Centre"]
["KZN","Durban",null,"Durban Westvile Medium C Centre"]
["KZN","Durban",null,"Mzinto Correctional Centre"]
["KZN","Durban",null,"Durban Westville Youth Centre"]
["KZN","Empangeni",null,"Empangeni Medium Centre"]
["KZN","Empangeni",null,"Eshowe Correctional Centre"]
["KZN","Empangeni",null,"Ingwavuma Correctional Centre"]
["KZN","Empangeni",null,"Maphumulo Correctional Centre"]
["KZN","Empangeni",null,"Mtunzini Correctional Centre"]
["KZN","Empangeni",null,"Qalakabusha Correctional Centre"]
["KZN","Empangeni",null,"Stanger Correctional Centre"]
["KZN","Glencoe",null,"Bergville Correctional Centre"]
["KZN","Glencoe",null,"Dundee Correctional Centre"]
["KZN","Glencoe",null,"Escourt Correctional Centre"]
["KZN","Glencoe",null,"Glencoe Correctional Centre"]
["KZN","Glencoe",null,"Greytown Correctional Centre"]
["KZN","Glencoe",null,"Kranskop Correctional Centre"]
["KZN","Glencoe",null,"Ladysmith Correctional Centre"]
["KZN","Glencoe",null,"Pomeroy Correctional Centre"]
["KZN","Kokstad",null,"Ebongweni"]
["KZN","Kokstad",null,"Kokstad Medium"]
["KZN","Kokstad",null,"Matatiele"]
["KZN","Kokstad",null,"Mzimkhulu"]
["KZN","Kokstad",null,"Port Shepstone"]
["KZN","Ncome",null,"Ncome Medium A"]
["KZN","Ncome",null,"Ncome Medium B"]
["KZN","Ncome",null,"Nkandla Correctional Centre"]
["KZN","Ncome",null,"Nongoma Correctional Centre"]
["KZN","Ncome",null,"Nquthu Correctional Centre"]
["KZN","Ncome",null,"Vryheid Correctional Centre"]
["KZN","Pietermaritzburg",null,"New Hanover Correctional Centre"]
["KZN","Pietermaritzburg",null,"Ixhopho"]
["KZN","Pietermaritzburg",null,"Pietermaritzburg Medium A"]
["KZN","Pietermaritzburg",null,"Pietermaritzburg Medium B"]
["KZN","Pietermaritzburg",null,"Pietermaritzburg Regional Office"]
["KZN","Pietermaritzburg",null,"Sevontein Correctional Centre"]
["KZN","Waterval",null,"Ekuseni"]
["KZN","Waterval",null,"Waterval Medium A"]
["KZN","Waterval",null,"Waterval Medium B"]
["KZN","Waterval",null,"Newcastle "]
["KZN","Waterval",null,"Utrecht"]
["WC","Allandale",null,"Allandale Area Commissioner",null,null,{"$f":"SUBTOTAL(9,#REF!)","v":{"$error":"#REF!"}}]
["WC","Allandale",null,"Allandale Correctional Services"]
["WC","Allandale",null,"Paarderberg Correctional Services"]
["WC","Allandale",null,"Hawequa Correctional Services"]
["WC","Allandale",null,"Obiqua Correcctional Service"]
["WC","Brandvlei",null,"Brandvlei Access Control"]
["WC","Brandvlei",null,"Brandvlei Maximum"]
["WC","Brandvlei",null,"Brandvlei Medium"]
["WC","Brandvlei",null,"Brandvlei Youth"]
["WC","Brandvlei",null,"Brandvlei Area Commissioners Office"]
["WC","Breede River",null,"Robertson Correctional Centre"]
["WC","Breede River",null,"Warmbokkeveld Correctional Centre"]
["WC","Breede River",null,"Dwarsrivier Correctional Centre"]
["WC","Breede River",null,"Worcester Female Centre"]
["WC","Breede River ",null,"Worcester Male Centre"]
["WC","Drakenstein",null,"Drakenstein Maximum Centre"]
["WC","Drakenstein",null,"Drakenstein Medium A Centre"]
["WC","Drakenstein",null,"Stellenbosch Correctional Centre"]
["WC","Drakenstein ",null,"Drakenstein Medium B  Youth Centre"]
["WC","Goodwood",null,"Goodwood Correctional Services Main Gate"]
["WC","Goodwood",null,"Goodwood Correctional Services"]
["WC","Overberg",null,"Overberg Area Correctional Office"]
["WC","Overberg",null,"Buffeljagsrivier Correctional Service"]
["WC","Overberg",null,"Caledon Remand Detention Facility"]
["WC","Overberg",null,"Helderstroom Maximum Centre"]
["WC","Overberg",null,"Helderstroom Medium Centre"]
["WC","Pollsmoor",null,"Pollsmoor Female"]
["WC","Pollsmoor",null,"Pollsmoor Medium A"]
["WC","Pollsmoor",null,"Pollsmoor Medium B"]
["WC","Pollsmoor",null,"Pollsmoor Medium C"]
["WC","Pollsmoor",null,"Pollsmoor Main Gate"]
["WC","Pollsmoor",null,"Pollsmorr Remand Detention Facility"]
["WC","Southern Cape ",null,"Oudtshoorn Male Centre"]
["WC","Southern Cape ",null,"Oudtshoorn Female Centre"]
["WC","Southern Cape ",null,"George Correctional Centre"]
["WC","Southern Cape ",null,"Mosselbay Correctional Centre"]
["WC","Southern Cape ",null,"Knysna Correctional Centre"]
["WC","Southern Cape ",null,"Beaufort West Correctional Centre"]
["WC","Southern Cape ",null,"Prince Albert Correctional Centre"]
["WC","Southern Cape ",null,"Ladismith Correctional Centre"]
["WC","Southern Cape ",null,"Uniondale Correctional Centre"]
["WC","Southern Cape ",null,"Thembalethu Correctional Centre"]
["WC","Voorberg",null,"Calvinia Correctional Centre"]
["WC","Voorberg",null,"Voorberg Medium A Centre"]
["WC","Voorberg",null,"Voorberg Medium B Centre"]
["WC","Voorberg",null,"Vanrhynsdorp Correctional Centre"]
["WC","West Coast",null,"Malmesbury Medium A Centre"]
["WC","West Coast",null,"Malmesbury Remand Detention Facility"]
["WC","West Coast",null,"Riebeeckwest Correctional Centre"]
["MP","Barberton",null,"Barberton Maximum",0,17,26]
["MP","Barberton",null,"Barberton Medium A",0,1,2]
["MP","Barberton",null,"Barberton Medium B",0,4,4]
["MP","Barberton",null,"Barberton Town Youth",0,4,8]
["MP","Barberton",null,"Lydenburg Correctional Centre",0,1,2]
["MP","Barberton",null,"Nelspruit Correctional Centre",0,2,8]
["MP","Bethal",null,"Bethal Correctional Centre ",0,8,10]
["MP","Bethal",null,"Ermelo Centre Of Excellence",0,10,12]
["MP","Bethal",null,"Piet Retief Correctional Centre",0,0,5]
["MP","Bethal",null,"Volksrust Correctional Centre",0,1,3]
["MP","Bethal",null,"Standerton Correctional Centre",0,0,25]
["NW","Klerksdorp",null,"Christiana Correctional Centre",0,4,4]
["NW","Klerksdorp",null,"Klerksdorp Correctional Centre",15,0,15]
["NW","Klerksdorp",null,"Potchefstroom Correctional Cntre",12,3,15]
["NW","Klerksdorp",null,"Wolmaransstad Correctional Centre",0,4,4]
["LMP","Polokwanwe","1 Hostipal street cnr Landros mare street, Polokwane, LP","Polokwane Correctional Centre",0,0,10]
["LMP","Polokwanwe","81 Nelson Mandela drive, Modimolle, LP, 0510","Modimolle Correctional Centre",4,9,9]
["LMP","Polokwanwe","1 Anecke street tzaneen, LP,  0850","Tzaneen Correctional Centre",5,1,8]
["NW","Rooigrond",null,"Rooigrond Correctional Centre Medium A ",2,2,5]
["NW","Rooigrond",null,"Rooigrond Correctional Centre Medium B",1,0,2]
["NW","Rooigrond",null,"Zeerust Correctional Centre",0,0,2]
["NW","Rooigrond",null,"Lichtenburg Correctional Centre",2,0,3]
["NW","Rooigrond",null,"Mafikeng Correctional Centre",1,0,2]
["NW","Rustenburg",null,"Brits Correctional Service",0,0,8]
["NW","Rustenburg",null,"Losperfontein Correctional Service",0,5,12]
["NW","Rustenburg",null,"Mogwase Correctional Service",6,6,10]
["NW","Rustenburg",null,"Rustenburg Centre Of Excellence",0,2,2]
["NW","Rustenburg",null,"Rustenburg Medium A",0,4,8]
["LMP","Thohoyandou",null,"Makhado Correctional Centre Gate",4,3,2]
["LMP","Thohoyandou",null,"Thohoyandou Medium B Gate",0,3,2]
["LMP","Thohoyandou",null,"Thohoyandoufemale & Juvenile Gate",1,3,2]
["LMP","Thohoyandou",null,"Thohoyandou Medium A Gate",0,12,3]
["MP","Witbank","Old Verena road, Witbank","Witbank New Coorectional Centre",0,15,17]
["MP","Witbank","Hoopstraat, Middelburg","Middelburg Correctional Centre",0,10,12]
["MP","Witbank","87 Kerkstraat, Belfast","Belfast Correctional Centre",0,1,2]
["MP","Witbank","Du Toitstreet, Carolina","Carolina Correctional Centre",0,1,2]
[{"$nulls":6},{"$f":"SUBTOTAL(9,G235:G270)","v":266}]
[]
[{"$nulls":3},"NB: Quanties are based on estimates and subject to change/s . "]

{"sheet":"GP","index":4,"n_rows":264,"n_cols":5,"rows_kept":264,"merged":[[102,2,104,2],[105,2,107,2],[108,2,111,2],[112,2,115,2],[119,2,122,2],[126,2,127,2]]}
["Region","Management Area","Address per Management Area","Correctional Centre Name","TELEPHONE NEEDS 2026"]
["EC","Amathole",null,"Fort Beaufort Correctional Centre"]
["EC","Amathole",null,"Grahamstown Correctional Centre"]
["EC","Amathole",null,"King Williams Town Correctional Centre"]
["EC","Amathole",null,"Middledrift Correctionsl Centre"]
["EC","Amathole",null,"Stutterheim Correctional Centre"]
["EC","East London","Bank street, WesBank, East London","East London Parole Board"]
["EC","East London",null,"Mdantsane Correctional Centre"]
["EC","East London",null,"East London Maximum"]
["EC","East London",null,"East London Medium B Remand"]
["EC","East London",null,"East London Medium C Female"]
["EC","Kirkwood",null,"Graaffreinet Correctional Centre"]
["EC","Kirkwood",null,"Jansenville Correctional Centre"]
["EC","Kirkwood",null,"Kirkwood Correctional Centre"]
["EC","Kirkwood",null,"Somerset East Correctional Centre"]
["EC","Mthatha ",null,"Bizana Correctional Centre"]
["EC","Mthatha ",null,"Elliotdale Correctional Centre"]
["EC","Mthatha ",null,"Flagstaff Correctional Centre"]
["EC","Mthatha ",null,"Lusikisiki Correctional Centre"]
["EC","Mthatha ",null,"Mqanduli Correctional Centre"]
["EC","Mthatha ",null,"Mt Ayliff Correctional Centre"]
["EC","Mthatha ",null,"Mt Fletcher Correctional Centre"]
["EC","Mthatha ",null,"Mt Frere Correctional Centre"]
["EC","Mthatha ",null,"Mthatha Correctional Centre Medium"]
["EC","Mthatha ",null,"Ngqeleni Correctional Centre"]
["EC","Mthatha ",null,"Mthatha Remand Detention Facility"]
["EC","Mthatha ",null,"Tabankulu Correctional Centre"]
["EC","Sada ",null,"Barkly East Correctional Centre"]
["EC","Sada ",null,"Burgersdorp Correctional Centre"]
["EC","Sada ",null,"Butterworth Correctional Centre"]
["EC","Sada ",null,"Cofimvaba Correctional Centre"]
["EC","Sada ",null,"Cradock Correctional Centre"]
["EC","Sada ",null,"Dodrecht Correctional Centre"]
["EC","Sada ",null,"Idutywa Correctional Centre"]
["EC","Sada ",null,"Lady Frere Correctional Centre"]
["EC","Sada ",null,"Middelburg Correctional Centre"]
["EC","Sada ",null,"Ngcobo Correctional Centre"]
["EC","Sada ",null,"Nqamakwe Correctional Centre"]
["EC","Sada ",null,"Queenstown Correctional Centre"]
["EC","Sada ",null,"Sada Correctional Centre"]
["EC","Sada ",null,"Sterkspruit Correctional Centre"]
["EC","Sada ",null,"Willowvale Correctional Centre"]
["EC","St Albans ",null,"St Albans Area Office"]
["EC","St Albans ",null,"Humansdorp Community Corrections"]
["EC","St Albans ",null," St Albans Maximum"]
["EC","St Albans ",null,"St Albans Medium A"]
["EC","St Albans ",null," St Albans Medium B"]
["EC","St Albans ",null,"Patensie Correctional Centre"]
["EC","St Albans ",null,"Port Elizabeth Correctional Centre"]
["FS ","Bizzah Makhate",null,"Bethlehem Correctional Centre"]
["FS ","Bizzah Makhate",null,"Bizzah Makhate Correctional Centre  A"]
["FS ","Bizzah Makhate",null,"Bizzah Makhate Correctional Centre B"]
["FS ","Bizzah Makhate",null,"Bizzah Makhate Access Control Gate"]
["FS ","Bizzah Makhate",null,"Bizzah Makhate Correctional Centre C"]
["FS ","Bizzah Makhate",null,"Bizzah Makhate Correctional Centre  D"]
["FS ","Bizzah Makhate",null,"Kroonstad College"]
["FS ","Bizzah Makhate",null,"Ficksburg Correctional Centre"]
["FS ","Bizzah Makhate",null,"Harrismith Correctional Centre"]
["FS ","Bizzah Makhate",null,"Hennenman Correctional Centre"]
["FS ","Bizzah Makhate",null,"Hoopstad Correctional Centre"]
["FS ","Bizzah Makhate",null,"Kroonstad Correctional Centre"]
["FS ","Bizzah Makhate",null,"Lindley Correctional Centre"]
["FS ","Bizzah Makhate",null,"Odendaalsrus Correctional Centre"]
["FS ","Bizzah Makhate",null,"Qwaqwa Correctional Centre"]
["FS ","Bizzah Makhate",null,"Senekal Correctional Centre"]
["FS ","Bizzah Makhate",null,"Ventersburg Correctional Centre"]
["FS ","Bizzah Makhate",null,"Virginia Correctional Centre"]
["FS ","Colesberg",null,"Colesberg Correctional Centre"]
["FS ","Colesberg",null,"De Aar Correctional Centre"]
["FS ","Colesberg",null,"Hope Town Correctional Centre"]
["FS ","Colesberg",null,"Richmond Correctional Centre"]
["FS ","Colesberg",null,"Victoria West Correctional Centre"]
["FS ","Goedemoed",null,"Bethulie Correctional Centre"]
["FS ","Goedemoed",null,"Edenburg Correctional Centre"]
["FS ","Goedemoed",null,"Fauresmith Correctional Centre"]
["FS ","Goedemoed",null,"Goedemoed Correctional Centre Medium A"]
["FS ","Goedemoed",null,"Goedemoed Correctional Centre Medium B"]
["FS ","Goedemoed",null,"Zastron Correctional Centre"]
["FS ","Groenpunt",null,"Frankfort Correctional Centre"]
["FS ","Groenpunt",null,"Heilbron Correctional Centres"]
["FS ","Groenpunt",null,"Groenpunt Maximum Centre"]
["FS ","Groenpunt",null,"Groenpunt Medium Centre"]
["FS ","Groenpunt",null,"Parys Correctional Centre"]
["FS ","Groenpunt",null,"Sasolburg Correctional Centre"]
["FS ","Groenpunt",null,"Vereeniging Correctional Centre"]
["FS ","Groenpunt",null,"Groenpunt Youth Centre"]
["FS ","Grootvlei",null," Ladybrand Correctional Centre"]
["FS ","Grootvlei",null,"Boshof  Correctional Center"]
["FS ","Grootvlei",null,"Brandfort Correctional Centre"]
["FS ","Grootvlei",null,"Grootvlei Medium B Main Gate"]
["FS ","Grootvlei",null,"Grootvlei St Rose Gate"]
["FS ","Grootvlei",null,"Ladybrand Correctional Centre"]
["FS ","Grootvlei",null,"Wepener Correctional Centre"]
["FS ","Grootvlei",null,"Winburg Correctional Centre"]
["NC","Kimberley",null,"Barkley West Correctional Centre"]
["NC","Kimberley",null,"Douglas Correctional Centre"]
["NC","Kimberley",null,"Kimberley Area Commissioners Office"]
["NC","Kimberley",null,"Kimberley Correctional Centre"]
["NC","Kimberley",null,"Tswelopele Correctional Centre"]
["NC","Upington",null,"Kuruman Correctional Centre"]
["NC","Upington",null,"Springbok Correctional Centre"]
["NC","Upington",null,"Upington Correctional Centre"]
["GP","Baviaanspoort","R513, Dr Sefako Makgatho Road, Roodeplaat, PRETORIA, 0039","Baviaanspoort Emthonjeni Correctional Centre",12]
["GP","Baviaanspoort",null,"Baviaanspoort Maximum Centre",15]
["GP","Baviaanspoort",null,"Baviaanspoort Medium Centre",18]
["GP","Boksburg","Barry Marais St","Boksburg Correctional Centre Medium A ",23]
["GP","Boksburg",null,"Boksburg Correctional Centre Medium B ",11]
["GP","Boksburg",null,"Heidelberg Correctional Centre",8]
["GP","Johannesburg","Main St 1","Johannesburg Female",20]
["GP","Johannesburg",null,"Johannesburg Correctional Centre Medium A",22]
["GP","Johannesburg",null,"Johannesburg Correctional Centre Medium B",12]
["GP","Johannesburg",null,"Johannesburg Correctional Centre Medium C",13]
["GP","Kgoši Mamapuru II","Kgosi Mampuru  St 1 (Potgieter)","Kgosi Mampuru II Cmax",14]
["GP","Kgoši Mamapuru II",null,"Kgosi Mampuru II Central",25]
["GP","Kgoši Mamapuru II",null,"Kgosi Mampuru Male Maximum",6]
["GP","Kgoši Mamapuru II",null,"Kgosi Mampuru II Local ",30]
["GP","Kgoši Mamapuru II",",Pierre Van Ryneveldt St, Pretoria Townlands 351-Jr","Atteridgeville Correctional Centre",6]
["GP","Kgoši Mamapuru II","256JR Kliphat Rd, Block U, Mabopane","Odi Correctional Centre ",10]
["GP","Krugersdorp","CNR LUIPAARD AND CREMATORIUM STREET","Krugersdorp Correctional Centre",60]
["GP","Leeuwkop","Main Road Kyalami, Bryanston","Leeuwkop Maximum Centre",34]
["GP","Leeuwkop",null,"Leeuwkop  Medium B Centre",10]
["GP","Leeuwkop",null,"Leeuwkop Medium A Centre",31]
["GP","Leeuwkop",null,"Leeuwkop Medium C Centre",23]
["GP","Modderbee","Modderbee Rd","Modderbee Correctional Centre",50]
["GP","Modderbee","Main St (Farm)","Devon Correctional Centre ",8]
["GP","Modderbee","Johnson St Extension","Nigel Correctional Centre",7]
["GP","Zonderwater","Jackaranda St 7","Zonderwater Medium A Centre",20]
["GP","Zonderwater",null,"Zonderwater Medium B Centre",17]
["KZN","Durban",null,"Durban Community Corrections"]
["KZN","Durban",null,"Durban Westville Female Centre"]
["KZN","Durban",null,"Durban Westville Medium A Centre"]
["KZN","Durban",null,"Durban Westville Medium B Centre"]
["KZN","Durban",null,"Durban Westvile Medium C Centre"]
["KZN","Durban",null,"Mzinto Correctional Centre"]
["KZN","Durban",null,"Durban Westville Youth Centre"]
["KZN","Empangeni",null,"Empangeni Medium Centre"]
["KZN","Empangeni",null,"Eshowe Correctional Centre"]
["KZN","Empangeni",null,"Ingwavuma Correctional Centre"]
["KZN","Empangeni",null,"Maphumulo Correctional Centre"]
["KZN","Empangeni",null,"Mtunzini Correctional Centre"]
["KZN","Empangeni",null,"Qalakabusha Correctional Centre"]
["KZN","Empangeni",null,"Stanger Correctional Centre"]
["KZN","Glencoe",null,"Bergville Correctional Centre"]
["KZN","Glencoe",null,"Dundee Correctional Centre"]
["KZN","Glencoe",null,"Escourt Correctional Centre"]
["KZN","Glencoe",null,"Glencoe Correctional Centre"]
["KZN","Glencoe",null,"Greytown Correctional Centre"]
["KZN","Glencoe",null,"Kranskop Correctional Centre"]
["KZN","Glencoe",null,"Ladysmith Correctional Centre"]
["KZN","Glencoe",null,"Pomeroy Correctional Centre"]
["KZN","Kokstad",null,"Ebongweni"]
["KZN","Kokstad",null,"Kokstad Medium"]
["KZN","Kokstad",null,"Matatiele"]
["KZN","Kokstad",null,"Mzimkhulu"]
["KZN","Kokstad",null,"Port Shepstone"]
["KZN","Ncome",null,"Ncome Medium A"]
["KZN","Ncome",null,"Ncome Medium B"]
["KZN","Ncome",null,"Nkandla Correctional Centre"]
["KZN","Ncome",null,"Nongoma Correctional Centre"]
["KZN","Ncome",null,"Nquthu Correctional Centre"]
["KZN","Ncome",null,"Vryheid Correctional Centre"]
["KZN","Pietermaritzburg",null,"New Hanover Correctional Centre"]
["KZN","Pietermaritzburg",null,"Ixhopho"]
["KZN","Pietermaritzburg",null,"Pietermaritzburg Medium A"]
["KZN","Pietermaritzburg",null,"Pietermaritzburg Medium B"]
["KZN","Pietermaritzburg",null,"Pietermaritzburg Regional Office"]
["KZN","Pietermaritzburg",null,"Sevontein Correctional Centre"]
["KZN","Waterval",null,"Ekuseni"]
["KZN","Waterval",null,"Waterval Medium A"]
["KZN","Waterval",null,"Waterval Medium B"]
["KZN","Waterval",null,"Newcastle "]
["KZN","Waterval",null,"Utrecht"]
["MP","Barberton",null,"Barberton Ac Office"]
["MP","Barberton",null,"Barberton Maximum"]
["MP","Barberton",null,"Barberton Medium A"]
["MP","Barberton",null,"Barberton Medium B"]
["MP","Barberton",null,"Barberton Town Youth"]
["MP","Barberton",null,"Lydenburg Correctional Centre"]
["MP","Barberton",null,"Nelspruit Correctional Centre"]
["MP","Bethal",null,"Bethal Correctional Centre "]
["MP","Bethal",null,"Ermelo Centre Of Excellence"]
["MP","Bethal",null,"Piet Retief Correctional Centre"]
["MP","Bethal",null,"Volksrust Correctional Centre"]
["MP","Bethal",null,"Standerton Correctional Centre"]
["NW","Klerksdorp",null,"Christiana Correctional Centre"]
["NW","Klerksdorp",null,"Klerksdorp Correctional Centre"]
["NW","Klerksdorp",null,"Potchefstroom Correctional Cntre"]
["NW","Klerksdorp",null,"Wolmaransstad Correctional Centre"]
["LMP","Polokwanwe",null,"Polokwane Correctional Centre"]
["LMP","Polokwanwe",null,"Modimolle Correctional Centre"]
["LMP","Polokwanwe",null,"Tzaneen Correctional Centre"]
["NW","Rooigrond",null,"Rooigrond Correctional Centre Medium A "]
["NW","Rooigrond",null,"Rooigrond Correctional Centre Medium B"]
["NW","Rooigrond",null,"Zeerust Correctional Centre"]
["NW","Rooigrond",null,"Lichtenburg Correctional Centre"]
["NW","Rooigrond",null,"Mafikeng Correctional Centre"]
["NW","Rustenburg",null,"Brits Correctional Service"]
["NW","Rustenburg",null,"Losperfontein Correctional Service"]
["NW","Rustenburg",null,"Mogwase Correctional Service"]
["NW","Rustenburg",null,"Rustenburg Area Commissioner Office"]
["NW","Rustenburg",null,"Rustenburg Centre Of Excellence"]
["NW","Rustenburg",null,"Rustenburg Medium A"]
["LMP","Thohoyandou",null,"Makhado Correctional Centre Gate"]
["LMP","Thohoyandou",null,"Thohoyandou Medium B Gate"]
["LMP","Thohoyandou",null,"Thohoyandoufemale & Juvenile Gate"]
["LMP","Thohoyandou",null,"Thohoyandou Medium A Gate"]
["MP","Witbank",null,"Witbank Ac Office"]
["MP","Witbank",null,"Witbank New Coorectional Centre"]
["MP","Witbank",null,"Witbank Main Gate"]
["MP","Witbank",null,"Middelburg Correctional Centre"]
["MP","Witbank",null,"Belfast Correctional Centre"]
["MP","Witbank",null,"Carolina Correctional Centre"]
["MP","Witbank",null,"Witbank Correctional Centre Hr Office"]
["WC","Allandale",null,"Allandale Area Commissioner"]
["WC","Allandale",null,"Allandale Correctional Services"]
["WC","Allandale",null,"Paarderberg Correctional Services"]
["WC","Allandale",null,"Hawequa Correctional Services"]
["WC","Allandale",null,"Obiqua Correcctional Service"]
["WC","Brandvlei",null,"Brandvlei Access Control"]
["WC","Brandvlei",null,"Brandvlei Maximum"]
["WC","Brandvlei",null,"Brandvlei Medium"]
["WC","Brandvlei",null,"Brandvlei Youth"]
["WC","Brandvlei",null,"Brandvlei Area Commissioners Office"]
["WC","Breede River",null,"Robertson Correctional Centre"]
["WC","Breede River",null,"Warmbokkeveld Correctional Centre"]
["WC","Breede River",null,"Dwarsrivier Correctional Centre"]
["WC","Breede River",null,"Worcester Female Centre"]
["WC","Breede River ",null,"Worcester Male Centre"]
["WC","Drakenstein",null,"Drakenstein Maximum Centre"]
["WC","Drakenstein",null,"Drakenstein Medium A Centre"]
["WC","Drakenstein",null,"Stellenbosch Correctional Centre"]
["WC","Drakenstein ",null,"Drakenstein Medium B  Youth Centre"]
["WC","Goodwood",null,"Goodwood Correctional Services Main Gate"]
["WC","Goodwood",null,"Goodwood Correctional Services"]
["WC","Overberg",null,"Overberg Area Correctional Office"]
["WC","Overberg",null,"Buffeljagsrivier Correctional Service"]
["WC","Overberg",null,"Caledon Remand Detention Facility"]
["WC","Overberg",null,"Helderstroom Maximum Centre"]
["WC","Overberg",null,"Helderstroom Medium Centre"]
["WC","Pollsmoor",null,"Pollsmoor Female"]
["WC","Pollsmoor",null,"Pollsmoor Medium A"]
["WC","Pollsmoor",null,"Pollsmoor Medium B"]
["WC","Pollsmoor",null,"Pollsmoor Medium C"]
["WC","Pollsmoor",null,"Pollsmoor Main Gate"]
["WC","Pollsmoor",null,"Pollsmorr Remand Detention Facility"]
["WC","Southern Cape ",null,"Oudtshoorn Male Centre"]
["WC","Southern Cape ",null,"Oudtshoorn Female Centre"]
["WC","Southern Cape ",null,"George Correctional Centre"]
["WC","Southern Cape ",null,"Mosselbay Correctional Centre"]
["WC","Southern Cape ",null,"Knysna Correctional Centre"]
["WC","Southern Cape ",null,"Beaufort West Correctional Centre"]
["WC","Southern Cape ",null,"Prince Albert Correctional Centre"]
["WC","Southern Cape ",null,"Ladismith Correctional Centre"]
["WC","Southern Cape ",null,"Uniondale Correctional Centre"]
["WC","Southern Cape ",null,"Thembalethu Correctional Centre"]
["WC","Voorberg",null,"Calvinia Correctional Centre"]
["WC","Voorberg",null,"Voorberg Medium A Centre"]
["WC","Voorberg",null,"Voorberg Medium B Centre"]
["WC","Voorberg",null,"Vanrhynsdorp Correctional Centre"]
["WC","West Coast",null,"Malmesbury Medium A Centre"]
["WC","West Coast",null,"Malmesbury Remand Detention Facility"]
["WC","West Coast",null,"Riebeeckwest Correctional Centre"]
[{"$nulls":4},505]
[null,"NB: Quanties are based on estimates and subject to change/s . "]

{"sheet":"WC","index":5,"n_rows":276,"n_cols":7,"rows_kept":276}
["Region","Management Area","Address per Management Area","Correctional Centre Name","TELEPHONE OPERATIONAL","TELEPHONE NOT OPERATIONAL","TELEPHONE NEEDS 2026"]
["EC","Amathole",null,"Fort Beaufort Correctional Centre"]
["EC","Amathole",null,"Grahamstown Correctional Centre"]
["EC","Amathole",null,"King Williams Town Correctional Centre"]
["EC","Amathole",null,"Middledrift Correctionsl Centre"]
["EC","Amathole",null,"Stutterheim Correctional Centre"]
["EC","East London","Bank street, WesBank, East London","East London Parole Board"]
["EC","East London",null,"Mdantsane Correctional Centre"]
["EC","East London",null,"East London Maximum"]
["EC","East London",null,"East London Medium B Remand"]
["EC","East London",null,"East London Medium C Female"]
["EC","Kirkwood",null,"Graaffreinet Correctional Centre"]
["EC","Kirkwood",null,"Jansenville Correctional Centre"]
["EC","Kirkwood",null,"Kirkwood Correctional Centre"]
["EC","Kirkwood",null,"Somerset East Correctional Centre"]
["EC","Mthatha ",null,"Bizana Correctional Centre"]
["EC","Mthatha ",null,"Elliotdale Correctional Centre"]
["EC","Mthatha ",null,"Flagstaff Correctional Centre"]
["EC","Mthatha ",null,"Lusikisiki Correctional Centre"]
["EC","Mthatha ",null,"Mqanduli Correctional Centre"]
["EC","Mthatha ",null,"Mt Ayliff Correctional Centre"]
["EC","Mthatha ",null,"Mt Fletcher Correctional Centre"]
["EC","Mthatha ",null,"Mt Frere Correctional Centre"]
["EC","Mthatha ",null,"Mthatha Correctional Centre Medium"]
["EC","Mthatha ",null,"Ngqeleni Correctional Centre"]
["EC","Mthatha ",null,"Mthatha Remand Detention Facility"]
["EC","Mthatha ",null,"Tabankulu Correctional Centre"]
["EC","Sada ",null,"Barkly East Correctional Centre"]
["EC","Sada ",null,"Burgersdorp Correctional Centre"]
["EC","Sada ",null,"Butterworth Correctional Centre"]
["EC","Sada ",null,"Cofimvaba Correctional Centre"]
["EC","Sada ",null,"Cradock Correctional Centre"]
["EC","Sada ",null,"Dodrecht Correctional Centre"]
["EC","Sada ",null,"Idutywa Correctional Centre"]
["EC","Sada ",null,"Lady Frere Correctional Centre"]
["EC","Sada ",null,"Middelburg Correctional Centre"]
["EC","Sada ",null,"Ngcobo Correctional Centre"]
["EC","Sada ",null,"Nqamakwe Correctional Centre"]
["EC","Sada ",null,"Queenstown Correctional Centre"]
["EC","Sada ",null,"Sada Correctional Centre"]
["EC","Sada ",null,"Sterkspruit Correctional Centre"]
["EC","Sada ",null,"Willowvale Correctional Centre"]
["EC","St Albans ",null,"St Albans Area Office"]
["EC","St Albans ",null,"Humansdorp Community Corrections"]
["EC","St Albans ",null," St Albans Maximum"]
["EC","St Albans ",null,"St Albans Medium A"]
["EC","St Albans ",null," St Albans Medium B"]
["EC","St Albans ",null,"Patensie Correctional Centre"]
["EC","St Albans ",null,"Port Elizabeth Correctional Centre"]
["FS ","Bizzah Makhate",null,"Bethlehem Correctional Centre"]
["FS ","Bizzah Makhate",null,"Bizzah Makhate Correctional Centre  A"]
["FS ","Bizzah Makhate",null,"Bizzah Makhate Correctional Centre B"]
["FS ","Bizzah Makhate",null,"Bizzah Makhate Access Control Gate"]
["FS ","Bizzah Makhate",null,"Bizzah Makhate Correctional Centre C"]
["FS ","Bizzah Makhate",null,"Bizzah Makhate Correctional Centre  D"]
["FS ","Bizzah Makhate",null,"Kroonstad College"]
["FS ","Bizzah Makhate",null,"Ficksburg Correctional Centre"]
["FS ","Bizzah Makhate",null,"Harrismith Correctional Centre"]
["FS ","Bizzah Makhate",null,"Hennenman Correctional Centre"]
["FS ","Bizzah Makhate",null,"Hoopstad Correctional Centre"]
["FS ","Bizzah Makhate",null,"Kroonstad Correctional Centre"]
["FS ","Bizzah Makhate",null,"Lindley Correctional Centre"]
["FS ","Bizzah Makhate",null,"Odendaalsrus Correctional Centre"]
["FS ","Bizzah Makhate",null,"Qwaqwa Correctional Centre"]
["FS ","Bizzah Makhate",null,"Senekal Correctional Centre"]
["FS ","Bizzah Makhate",null,"Ventersburg Correctional Centre"]
["FS ","Bizzah Makhate",null,"Virginia Correctional Centre"]
["FS ","Colesberg",null,"Colesberg Correctional Centre"]
["FS ","Colesberg",null,"De Aar Correctional Centre"]
["FS ","Colesberg",null,"Hope Town Correctional Centre"]
["FS ","Colesberg",null,"Richmond Correctional Centre"]
["FS ","Colesberg",null,"Victoria West Correctional Centre"]
["FS ","Goedemoed",null,"Bethulie Correctional Centre"]
["FS ","Goedemoed",null,"Edenburg Correctional Centre"]
["FS ","Goedemoed",null,"Fauresmith Correctional Centre"]
["FS ","Goedemoed",null,"Goedemoed Correctional Centre Medium A"]
["FS ","Goedemoed",null,"Goedemoed Correctional Centre Medium B"]
["FS ","Goedemoed",null,"Zastron Correctional Centre"]
["FS ","Groenpunt",null,"Frankfort Correctional Centre"]
["FS ","Groenpunt",null,"Heilbron Correctional Centres"]
["FS ","Groenpunt",null,"Groenpunt Maximum Centre"]
["FS ","Groenpunt",null,"Groenpunt Medium Centre"]
["FS ","Groenpunt",null,"Parys Correctional Centre"]
["FS ","Groenpunt",null,"Sasolburg Correctional Centre"]
["FS ","Groenpunt",null,"Vereeniging Correctional Centre"]
["FS ","Groenpunt",null,"Groenpunt Youth Centre"]
["FS ","Grootvlei",null," Ladybrand Correctional Centre"]
["FS ","Grootvlei",null,"Boshof  Correctional Center"]
["FS ","Grootvlei",null,"Brandfort Correctional Centre"]
["FS ","Grootvlei",null,"Grootvlei Medium B Main Gate"]
["FS ","Grootvlei",null,"Grootvlei St Rose Gate"]
["FS ","Grootvlei",null,"Ladybrand Correctional Centre"]
["FS ","Grootvlei",null,"Wepener Correctional Centre"]
["FS ","Grootvlei",null,"Winburg Correctional Centre"]
["NC","Kimberley",null,"Barkley West Correctional Centre"]
["NC","Kimberley",null,"Douglas Correctional Centre"]
["NC","Kimberley",null,"Kimberley Area Commissioners Office"]
["NC","Kimberley",null,"Kimberley Correctional Centre"]
["NC","Kimberley",null,"Tswelopele Correctional Centre"]
["NC","Upington",null,"Kuruman Correctional Centre"]
["NC","Upington",null,"Springbok Correctional Centre"]
["NC","Upington",null,"Upington Correctional Centre",16,3]
["GP","Baviaanspoort",null,"Area Commissioner Main Gate"]
["GP","Baviaanspoort",null,"Baviaanspoort Emthonjeni Correctional Centre"]
["GP","Baviaanspoort",null,"Baviaanspoort Maximum Centre"]
["GP","Baviaanspoort",null,"Baviaanspoort Medium Centre"]
["GP","Boksburg",null,"Boksburg Area Commissioner Main Gate1"]
["GP","Boksburg",null,"Boksburg Correctional Centre Medium A "]
["GP","Boksburg",null,"Boksburg Correctional Centre Medium B "]
["GP","Boksburg",null,"Heidelberg Correctional Centre"]
["GP","Johannesburg",null,"Ac Corp Service Main Gate1"]
["GP","Johannesburg",null,"Ac Corrections Main Gate2"]
["GP","Johannesburg",null,"Johannesburg Female"]
["GP","Johannesburg",null,"Johannesburg Correctional Centre Medium A"]
["GP","Johannesburg",null,"Johannesburg Correctional Centre Medium B"]
["GP","Johannesburg",null,"Johannesburg Correctional Centre Medium C"]
["GP","Kgoši Mamapuru II",null,"Ac Corrections Main Gate1"]
["GP","Kgoši Mamapuru II",null,"Kmii Cmax"]
["GP","Kgoši Mamapuru II",null,"Atteridgeville Correctional Centre"]
["GP","Kgoši Mamapuru II",null,"Kmii Central"]
["GP","Kgoši Mamapuru II",null,"Kmii Female "]
["GP","Kgoši Mamapuru II",null,"Kmii Local "]
["GP","Kgoši Mamapuru II",null,"Odi Correctional Centre "]
["GP","Kgoši Mamapuru II",null,"Kmii Main Gate2"]
["GP","Krugersdorp",null,"Ac Corrections Main Gate"]
["GP","Leeuwkop",null,"Leeuwkop Max Centre"]
["GP","Leeuwkop",null,"Leeuwkop  Medium B Centre"]
["GP","Leeuwkop",null,"Leeuwkop Corporate Services Main Gate2"]
["GP","Leeuwkop",null,"Leeuwkop Corrections Main Gate1"]
["GP","Leeuwkop",null,"Leeuwkop Medium A Centre"]
["GP","Leeuwkop",null,"Leeuwkop Medium C Centre"]
["GP","Modderbee",null,"Modderbee Ac Corrections Main Gate"]
["GP","Modderbee",null,"Devon Correctional Centre "]
["GP","Modderbee",null,"Modderbee Correctional Centre"]
["GP","Modderbee",null,"Nigel Correctional Centre"]
["GP","Pretoria",null,"Hatfield Regional Office"]
["GP","Zonderwater",null,"Zonderwater Main Gate"]
["GP","Zonderwater",null,"Cullinan Correctional Centre"]
["GP","Zonderwater",null,"Zonderwater Medium A Centre"]
["GP","Zonderwater",null,"Zonderwater Medium B Centre"]
["GP","Zonderwater",null,"Zonderwater College"]
["KZN","Durban",null,"Durban Community Corrections"]
["KZN","Durban",null,"Durban Westville Female Centre"]
["KZN","Durban",null,"Durban Westville Medium A Centre"]
["KZN","Durban",null,"Durban Westville Medium B Centre"]
["KZN","Durban",null,"Durban Westvile Medium C Centre"]
["KZN","Durban",null,"Mzinto Correctional Centre"]
["KZN","Durban",null,"Durban Westville Youth Centre"]
["KZN","Empangeni",null,"Empangeni Medium Centre"]
["KZN","Empangeni",null,"Eshowe Correctional Centre"]
["KZN","Empangeni",null,"Ingwavuma Correctional Centre"]
["KZN","Empangeni",null,"Maphumulo Correctional Centre"]
["KZN","Empangeni",null,"Mtunzini Correctional Centre"]
["KZN","Empangeni",null,"Qalakabusha Correctional Centre"]
["KZN","Empangeni",null,"Stanger Correctional Centre"]
["KZN","Glencoe",null,"Bergville Correctional Centre"]
["KZN","Glencoe",null,"Dundee Correctional Centre"]
["KZN","Glencoe",null,"Escourt Correctional Centre"]
["KZN","Glencoe",null,"Glencoe Correctional Centre"]
["KZN","Glencoe",null,"Greytown Correctional Centre"]
["KZN","Glencoe",null,"Kranskop Correctional Centre"]
["KZN","Glencoe",null,"Ladysmith Correctional Centre"]
["KZN","Glencoe",null,"Pomeroy Correctional Centre"]
["KZN","Kokstad",null,"Ebongweni"]
["KZN","Kokstad",null,"Kokstad Medium"]
["KZN","Kokstad",null,"Matatiele"]
["KZN","Kokstad",null,"Mzimkhulu"]
["KZN","Kokstad",null,"Port Shepstone"]
["KZN","Ncome",null,"Ncome Medium A"]
["KZN","Ncome",null,"Ncome Medium B"]
["KZN","Ncome",null,"Nkandla Correctional Centre"]
["KZN","Ncome",null,"Nongoma Correctional Centre"]
["KZN","Ncome",null,"Nquthu Correctional Centre"]
["KZN","Ncome",null,"Vryheid Correctional Centre"]
["KZN","Pietermaritzburg",null,"New Hanover Correctional Centre"]
["KZN","Pietermaritzburg",null,"Ixhopho"]
["KZN","Pietermaritzburg",null,"Pietermaritzburg Medium A"]
["KZN","Pietermaritzburg",null,"Pietermaritzburg Medium B"]
["KZN","Pietermaritzburg",null,"Pietermaritzburg Regional Office"]
["KZN","Pietermaritzburg",null,"Sevontein Correctional Centre"]
["KZN","Waterval",null,"Ekuseni"]
["KZN","Waterval",null,"Waterval Medium A"]
["KZN","Waterval",null,"Waterval Medium B"]
["KZN","Waterval",null,"Newcastle "]
["KZN","Waterval",null,"Utrecht"]
["MP","Barberton",null,"Barberton Ac Office"]
["MP","Barberton",null,"Barberton Maximum"]
["MP","Barberton",null,"Barberton Medium A"]
["MP","Barberton",null,"Barberton Medium B"]
["MP","Barberton",null,"Barberton Town Youth"]
["MP","Barberton",null,"Lydenburg Correctional Centre"]
["MP","Barberton",null,"Nelspruit Correctional Centre"]
["MP","Bethal",null,"Bethal Correctional Centre "]
["MP","Bethal",null,"Ermelo Centre Of Excellence"]
["MP","Bethal",null,"Piet Retief Correctional Centre"]
["MP","Bethal",null,"Volksrust Correctional Centre"]
["MP","Bethal",null,"Standerton Correctional Centre"]
["NW","Klerksdorp",null,"Christiana Correctional Centre"]
["NW","Klerksdorp",null,"Klerksdorp Correctional Centre"]
["NW","Klerksdorp",null,"Potchefstroom Correctional Cntre"]
["NW","Klerksdorp",null,"Wolmaransstad Correctional Centre"]
["LMP","Polokwanwe",null,"Polokwane Correctional Centre"]
["LMP","Polokwanwe",null,"Modimolle Correctional Centre"]
["LMP","Polokwanwe",null,"Tzaneen Correctional Centre"]
["NW","Rooigrond",null,"Rooigrond Correctional Centre Medium A "]
["NW","Rooigrond",null,"Rooigrond Correctional Centre Medium B"]
["NW","Rooigrond",null,"Zeerust Correctional Centre"]
["NW","Rooigrond",null,"Lichtenburg Correctional Centre"]
["NW","Rooigrond",null,"Mafikeng Correctional Centre"]
["NW","Rustenburg",null,"Brits Correctional Service"]
["NW","Rustenburg",null,"Losperfontein Correctional Service"]
["NW","Rustenburg",null,"Mogwase Correctional Service"]
["NW","Rustenburg",null,"Rustenburg Area Commissioner Office"]
["NW","Rustenburg",null,"Rustenburg Centre Of Excellence"]
["NW","Rustenburg",null,"Rustenburg Medium A"]
["LMP","Thohoyandou",null,"Makhado Correctional Centre Gate"]
["LMP","Thohoyandou",null,"Thohoyandou Medium B Gate"]
["LMP","Thohoyandou",null,"Thohoyandoufemale & Juvenile Gate"]
["LMP","Thohoyandou",null,"Thohoyandou Medium A Gate"]
["MP","Witbank",null,"Witbank Ac Office"]
["MP","Witbank",null,"Witbank New Coorectional Centre"]
["MP","Witbank",null,"Witbank Main Gate"]
["MP","Witbank",null,"Middelburg Correctional Centre"]
["MP","Witbank",null,"Belfast Correctional Centre"]
["MP","Witbank",null,"Carolina Correctional Centre"]
["MP","Witbank",null,"Witbank Correctional Centre Hr Office"]
["WC","Allandale","Meaker Street|Hugenote|Paarl","Allandale Correctional Services",4,4,{"$f":"F227 + E227","v":8}]
["WC","Allandale","Staart van Paardeberg|Agter Paarl Road|Paardeberg","Paarderberg Correctional Services",0,4,4]
["WC","Allandale","Addy Street|Wellington","Hawequa Correctional Services",2,3,5]
["WC","Allandale","Kruis Vallei Road|Tulbagh|6820","Obiqua Correcctional Service",4,3,7]
["WC","Brandvlei","Off N1 freeway btwn Worcester & Rawsonville","Brandvlei Access Control",0,1,1]
["WC","Brandvlei","Off N1 freeway btwn Worcester & Rawsonville","Brandvlei Maximum",0,15,15]
["WC","Brandvlei","Off N1 freeway btwn Worcester & Rawsonville","Brandvlei Medium A",2,32,34]
["WC","Brandvlei","Off N1 freeway btwn Worcester & Rawsonville","Brandvlei Medium C",0,5,5]
["WC","Brandvlei","Off N1 freeway btwn Worcester & Rawsonville","Brandvlei Youth",0,4,4]
["WC","Breede River","Van Oudtshoorn Road|Robertson|6705","Robertson Correctional Centre",2,3,5]
["WC","Breede River","Warmbokkeveld Correctional Centre\nVoortrekker Road R46\nCeres \n6835\n","Warmbokkeveld Correctional Centre",2,7,9]
["WC","Breede River","Off R43 way to Worcester","Dwarsrivier Correctional Centre",0,2,2]
["WC","Breede River ","Cnr Somerset & Rainier Street|Worcester|6849","Worcester Female Centre",1,3,4]
["WC","Breede River","Cnr Somerset & Rainier Street|Worcester|6849","Worcester Male Centre",1,3,4]
["WC","Drakenstein","Wemmershoek Road|Greater Drakenstein|7624","Drakenstein Maximum Centre",4,14,18]
["WC","Drakenstein","Wemmershoek Road|Greater Drakenstein|7624","Drakenstein Medium A Centre",1,16,17]
["WC","Drakenstein ","Muller Street|Stellenbosch","Stellenbosch Correctional Centre",0,3,3]
["WC","Drakenstein","Wemmershoek Road|Greater Drakenstein|7624","Drakenstein Medium B  Youth Centre",1,9,10]
["WC","Goodwood","Goodwood Correctional Centre \n358 Peninsula Drive \nMonte Vista\n","Goodwood Correctional Services Main Gate",0,1,1]
["WC","Goodwood","Goodwood Correctional Centre \n358 Peninsula Drive \nMonte Vista","Goodwood Correctional Services",0,48,48]
["WC","Overberg","R43 betweenVilliersdorp & Caledon","Overberg Area Correctional Office",1,0,1]
["WC","Overberg",null,"Buffeljagsrivier Correctional Service",0,5,5]
["WC","Overberg",null,"Caledon Remand Detention Facility",0,5,5]
["WC","Overberg","R43 betweenVilliersdorp & Caledon","Helderstroom Maximum Centre",0,7,7]
["WC","Overberg","R43 betweenVilliersdorp & Caledon","Helderstroom Medium Centre",2,6,8]
["WC","Pollsmoor","Pollsmoor Correctional Services\nTokai\n7945\n","Pollsmoor Female",0,7,7]
["WC","Pollsmoor","Pollsmoor Correctional Services\nTokai\n7945\n","Pollsmoor Medium A",0,10,10]
["WC","Pollsmoor","Pollsmoor Correctional Services\nTokai\n7945\n","Pollsmoor Medium B",0,9,9]
["WC","Pollsmoor","Pollsmoor Correctional Services\nTokai\n7945\n","Pollsmoor Medium C",0,4,4]
["WC","Pollsmoor","Pollsmoor Correctional Services\nTokai\n7945\n","Pollsmoor Main Gate",0,3,3]
["WC","Pollsmoor","Pollsmoor Correctional Services\nTokai\n7945","Pollsmorr Remand Detention Facility",0,35,35]
["WC","Southern Cape ","Upper Victoria Street|Oudtshoorn|6620","Oudtshoorn Male Centre",0,7,7]
["WC","Southern Cape ","Baron van Rheede Street|Oudtshoorn","Oudtshoorn Female Centre",0,2,2]
["WC","Southern Cape ","Union Street|George South|6529","George Correctional Centre",0,10,10]
["WC","Southern Cape ","Louis Fourie Road|Boplaas|Mosselbaai","Mosselbay Correctional Centre",1,6,7]
["WC","Southern Cape ","Rio Street|Knysna|6570","Knysna Correctional Centre",1,7,8]
["WC","Southern Cape ","4 Molteno Street|Beaufort West|6970","Beaufort West Correctional Centre",0,2,2]
["WC","Southern Cape ","80 Church Street|Prince Albert|6930","Prince Albert Correctional Centre",0,2,2]
["WC","Southern Cape ","53 Middelton Street|Ladismith","Ladismith Correctional Centre",0,2,2]
["WC","Southern Cape ","20 Hood Street|Uniondale|6460","Uniondale Correctional Centre",0,2,2]
["WC","Voorberg","5 Du Plessis Street|Calvinia","Calvinia Correctional Centre",0,2,2]
["WC","Voorberg","Porterville|6810","Voorberg Medium A Centre",0,4,4]
["WC","Voorberg","Porterville|6810","Voorberg Medium B Centre",0,19,19]
["WC","Voorberg","Church Street|Van Rynhsdorp|8170","Vanrhynsdorp Correctional Centre",4,18,22]
["WC","West Coast","Malmesbury Correctional Centre (New Prison)\nRozenburg Street\nMalmesbury 7300\n","Malmesbury Medium A Centre",8,28,36]
["WC","West Coast","Piketberg Road|Malmesbury|7300","Malmesbury Remand Detention Facility",1,4,5]
["WC","West Coast","R311 btwn Riebeeck West & Riebeeck Kasteel|7306","Riebeeckwest Correctional Centre",0,8,8]
[{"$nulls":6},{"$f":"SUBTOTAL(9,G227:G273)","v":436}]
[]
[{"$nulls":3},"NB: Quanties are based on estimates and subject to change/s . "]

{"sheet":"KZN","index":6,"n_rows":274,"n_cols":8,"rows_kept":274,"merged":[[141,2,146,2],[141,3,146,3],[147,2,153,2],[147,3,153,3],[154,2,161,2],[154,3,161,3],[162,2,166,2],[162,3,166,3],[167,2,171,2],[167,3,171,3],[172,2,176,2],[172,3,176,3],[177,2,181,2],[177,3,181,3]]}
["Region","Management Area","SCM STORE No","Address per Management Area","Correctional Centre Name","TELEPHONE OPERATIONAL","TELEPHONE NOT OPERATIONAL","TELEPHONE NEEDS 2026"]
["EC","Amathole",null,null,"Fort Beaufort Correctional Centre"]
["EC","Amathole",null,null,"Grahamstown Correctional Centre"]
["EC","Amathole",null,null,"King Williams Town Correctional Centre"]
["EC","Amathole",null,null,"Middledrift Correctionsl Centre"]
["EC","Amathole",null,null,"Stutterheim Correctional Centre"]
["EC","East London",null,"Bank street, WesBank, East London","East London Parole Board"]
["EC","East London",null,null,"Mdantsane Correctional Centre"]
["EC","East London",null,null,"East London Maximum"]
["EC","East London",null,null,"East London Medium B Remand"]
["EC","East London",null,null,"East London Medium C Female"]
["EC","Kirkwood",null,null,"Graaffreinet Correctional Centre"]
["EC","Kirkwood",null,null,"Jansenville Correctional Centre"]
["EC","Kirkwood",null,null,"Kirkwood Correctional Centre"]
["EC","Kirkwood",null,null,"Somerset East Correctional Centre"]
["EC","Mthatha ",null,null,"Bizana Correctional Centre"]
["EC","Mthatha ",null,null,"Elliotdale Correctional Centre"]
["EC","Mthatha ",null,null,"Flagstaff Correctional Centre"]
["EC","Mthatha ",null,null,"Lusikisiki Correctional Centre"]
["EC","Mthatha ",null,null,"Mqanduli Correctional Centre"]
["EC","Mthatha ",null,null,"Mt Ayliff Correctional Centre"]
["EC","Mthatha ",null,null,"Mt Fletcher Correctional Centre"]
["EC","Mthatha ",null,null,"Mt Frere Correctional Centre"]
["EC","Mthatha ",null,null,"Mthatha Correctional Centre Medium"]
["EC","Mthatha ",null,null,"Ngqeleni Correctional Centre"]
["EC","Mthatha ",null,null,"Mthatha Remand Detention Facility"]
["EC","Mthatha ",null,null,"Tabankulu Correctional Centre"]
["EC","Sada ",null,null,"Barkly East Correctional Centre"]
["EC","Sada ",null,null,"Burgersdorp Correctional Centre"]
["EC","Sada ",null,null,"Butterworth Correctional Centre"]
["EC","Sada ",null,null,"Cofimvaba Correctional Centre"]
["EC","Sada ",null,null,"Cradock Correctional Centre"]
["EC","Sada ",null,null,"Dodrecht Correctional Centre"]
["EC","Sada ",null,null,"Idutywa Correctional Centre"]
["EC","Sada ",null,null,"Lady Frere Correctional Centre"]
["EC","Sada ",null,null,"Middelburg Correctional Centre"]
["EC","Sada ",null,null,"Ngcobo Correctional Centre"]
["EC","Sada ",null,null,"Nqamakwe Correctional Centre"]
["EC","Sada ",null,null,"Queenstown Correctional Centre"]
["EC","Sada ",null,null,"Sada Correctional Centre"]
["EC","Sada ",null,null,"Sterkspruit Correctional Centre"]
["EC","Sada ",null,null,"Willowvale Correctional Centre"]
["EC","St Albans ",null,null,"St Albans Area Office"]
["EC","St Albans ",null,null,"Humansdorp Community Corrections"]
["EC","St Albans ",null,null," St Albans Maximum"]
["EC","St Albans ",null,null,"St Albans Medium A"]
["EC","St Albans ",null,null," St Albans Medium B"]
["EC","St Albans ",null,null,"Patensie Correctional Centre"]
["EC","St Albans ",null,null,"Port Elizabeth Correctional Centre"]
["FS ","Bizzah Makhate",null,null,"Bethlehem Correctional Centre"]
["FS ","Bizzah Makhate",null,null,"Bizzah Makhate Correctional Centre  A"]
["FS ","Bizzah Makhate",null,null,"Bizzah Makhate Correctional Centre B"]
["FS ","Bizzah Makhate",null,null,"Bizzah Makhate Access Control Gate"]
["FS ","Bizzah Makhate",null,null,"Bizzah Makhate Correctional Centre C"]
["FS ","Bizzah Makhate",null,null,"Bizzah Makhate Correctional Centre  D"]
["FS ","Bizzah Makhate",null,null,"Kroonstad College"]
["FS ","Bizzah Makhate",null,null,"Ficksburg Correctional Centre"]
["FS ","Bizzah Makhate",null,null,"Harrismith Correctional Centre"]
["FS ","Bizzah Makhate",null,null,"Hennenman Correctional Centre"]
["FS ","Bizzah Makhate",null,null,"Hoopstad Correctional Centre"]
["FS ","Bizzah Makhate",null,null,"Kroonstad Correctional Centre"]
["FS ","Bizzah Makhate",null,null,"Lindley Correctional Centre"]
["FS ","Bizzah Makhate",null,null,"Odendaalsrus Correctional Centre"]
["FS ","Bizzah Makhate",null,null,"Qwaqwa Correctional Centre"]
["FS ","Bizzah Makhate",null,null,"Senekal Correctional Centre"]
["FS ","Bizzah Makhate",null,null,"Ventersburg Correctional Centre"]
["FS ","Bizzah Makhate",null,null,"Virginia Correctional Centre"]
["FS ","Colesberg",null,null,"Colesberg Correctional Centre"]
["FS ","Colesberg",null,null,"De Aar Correctional Centre"]
["FS ","Colesberg",null,null,"Hope Town Correctional Centre"]
["FS ","Colesberg",null,null,"Richmond Correctional Centre"]
["FS ","Colesberg",null,null,"Victoria West Correctional Centre"]
["FS ","Goedemoed",null,null,"Bethulie Correctional Centre"]
["FS ","Goedemoed",null,null,"Edenburg Correctional Centre"]
["FS ","Goedemoed",null,null,"Fauresmith Correctional Centre"]
["FS ","Goedemoed",null,null,"Goedemoed Correctional Centre Medium A"]
["FS ","Goedemoed",null,null,"Goedemoed Correctional Centre Medium B"]
["FS ","Goedemoed",null,null,"Zastron Correctional Centre"]
["FS ","Groenpunt",null,null,"Frankfort Correctional Centre"]
["FS ","Groenpunt",null,null,"Heilbron Correctional Centres"]
["FS ","Groenpunt",null,null,"Groenpunt Maximum Centre"]
["FS ","Groenpunt",null,null,"Groenpunt Medium Centre"]
["FS ","Groenpunt",null,null,"Parys Correctional Centre"]
["FS ","Groenpunt",null,null,"Sasolburg Correctional Centre"]
["FS ","Groenpunt",null,null,"Vereeniging Correctional Centre"]
["FS ","Groenpunt",null,null,"Groenpunt Youth Centre"]
["FS ","Grootvlei",null,null," Ladybrand Correctional Centre"]
["FS ","Grootvlei",null,null,"Boshof  Correctional Center"]
["FS ","Grootvlei",null,null,"Brandfort Correctional Centre"]
["FS ","Grootvlei",null,null,"Grootvlei Medium B Main Gate"]
["FS ","Grootvlei",null,null,"Grootvlei St Rose Gate"]
["FS ","Grootvlei",null,null,"Ladybrand Correctional Centre"]
["FS ","Grootvlei",null,null,"Wepener Correctional Centre"]
["FS ","Grootvlei",null,null,"Winburg Correctional Centre"]
["NC","Kimberley",null,null,"Barkley West Correctional Centre"]
["NC","Kimberley",null,null,"Douglas Correctional Centre"]
["NC","Kimberley",null,null,"Kimberley Area Commissioners Office"]
["NC","Kimberley",null,null,"Kimberley Correctional Centre"]
["NC","Kimberley",null,null,"Tswelopele Correctional Centre"]
["NC","Upington",null,null,"Kuruman Correctional Centre"]
["NC","Upington",null,null,"Springbok Correctional Centre"]
["NC","Upington",null,null,"Upington Correctional Centre",16,3]
["GP","Baviaanspoort",null,null,"Area Commissioner Main Gate"]
["GP","Baviaanspoort",null,null,"Baviaanspoort Emthonjeni Correctional Centre"]
["GP","Baviaanspoort",null,null,"Baviaanspoort Maximum Centre"]
["GP","Baviaanspoort",null,null,"Baviaanspoort Medium Centre"]
["GP","Boksburg",null,null,"Boksburg Area Commissioner Main Gate1"]
["GP","Boksburg",null,null,"Boksburg Correctional Centre Medium A "]
["GP","Boksburg",null,null,"Boksburg Correctional Centre Medium B "]
["GP","Boksburg",null,null,"Heidelberg Correctional Centre"]
["GP","Johannesburg",null,null,"Ac Corp Service Main Gate1"]
["GP","Johannesburg",null,null,"Ac Corrections Main Gate2"]
["GP","Johannesburg",null,null,"Johannesburg Female"]
["GP","Johannesburg",null,null,"Johannesburg Correctional Centre Medium A"]
["GP","Johannesburg",null,null,"Johannesburg Correctional Centre Medium B"]
["GP","Johannesburg",null,null,"Johannesburg Correctional Centre Medium C"]
["GP","Kgoši Mamapuru II",null,null,"Ac Corrections Main Gate1"]
["GP","Kgoši Mamapuru II",null,null,"Kmii Cmax"]
["GP","Kgoši Mamapuru II",null,null,"Atteridgeville Correctional Centre"]
["GP","Kgoši Mamapuru II",null,null,"Kmii Central"]
["GP","Kgoši Mamapuru II",null,null,"Kmii Female "]
["GP","Kgoši Mamapuru II",null,null,"Kmii Local "]
["GP","Kgoši Mamapuru II",null,null,"Odi Correctional Centre "]
["GP","Kgoši Mamapuru II",null,null,"Kmii Main Gate2"]
["GP","Krugersdorp",null,null,"Ac Corrections Main Gate"]
["GP","Leeuwkop",null,null,"Leeuwkop Max Centre"]
["GP","Leeuwkop",null,null,"Leeuwkop  Medium B Centre"]
["GP","Leeuwkop",null,null,"Leeuwkop Corporate Services Main Gate2"]
["GP","Leeuwkop",null,null,"Leeuwkop Corrections Main Gate1"]
["GP","Leeuwkop",null,null,"Leeuwkop Medium A Centre"]
["GP","Leeuwkop",null,null,"Leeuwkop Medium C Centre"]
["GP","Modderbee",null,null,"Modderbee Ac Corrections Main Gate"]
["GP","Modderbee",null,null,"Devon Correctional Centre "]
["GP","Modderbee",null,null,"Modderbee Correctional Centre"]
["GP","Modderbee",null,null,"Nigel Correctional Centre"]
["GP","Pretoria",null,null,"Hatfield Regional Office"]
["GP","Zonderwater",null,null,"Zonderwater Main Gate"]
["GP","Zonderwater",null,null,"Cullinan Correctional Centre"]
["GP","Zonderwater",null,null,"Zonderwater Medium A Centre"]
["GP","Zonderwater",null,null,"Zonderwater Medium B Centre"]
["GP","Zonderwater",null,null,"Zonderwater College"]
["KZN","Durban",9510495023,"Harry Gwala Rd\n(Spine Rd)\nWestville\nDURBAN\n3630","Durban Westville Female Centre",10,3,13]
["KZN","Durban",null,null,"Durban Westville Medium A Centre",18,13,31]
["KZN","Durban",null,null,"Durban Westville Medium B Centre",11,14,25]
["KZN","Durban",null,null,"Durban Westvile Medium C Centre",0,7,7]
["KZN","Durban",null,null,"Mzinto Correctional Centre",2,11,13]
["KZN","Durban",null,null,"Durban Westville Youth Centre",8,11,19]
["KZN","Empangeni",9510495024,"Melmoth Rd (R34)\nEMPANGENI\n3380","Empangeni Medium Centre",1,2,3]
["KZN","Empangeni",null,null,"Eshowe Correctional Centre",0,10,10]
["KZN","Empangeni",null,null,"Ingwavuma Correctional Centre",1,2,3]
["KZN","Empangeni",null,null,"Maphumulo Correctional Centre",0,2,2]
["KZN","Empangeni",null,null,"Mtunzini Correctional Centre",0,2,2]
["KZN","Empangeni",null,null,"Qalakabusha Correctional Centre",0,30,30]
["KZN","Empangeni",null,null,"Stanger Correctional Centre",1,2,3]
["KZN","Glencoe",9510495025,"Old Northfield Mine\nBiggar Street North\nGLENCOE\n2930","Bergville Correctional Centre",0,1,2]
["KZN","Glencoe",null,null,"Dundee Correctional Centre",0,4,2]
["KZN","Glencoe",null,null,"Escourt Correctional Centre",0,10,10]
["KZN","Glencoe",null,null,"Glencoe Correctional Centre",0,7,7]
["KZN","Glencoe",null,null,"Greytown Correctional Centre",0,5,6]
["KZN","Glencoe",null,null,"Kranskop Correctional Centre",1,3,4]
["KZN","Glencoe",null,null,"Ladysmith Correctional Centre",1,6,7]
["KZN","Glencoe",null,null,"Pomeroy Correctional Centre",0,3,4]
["KZN","Kokstad",9510495026,"Matatiele Rd (R56)\nKOKSTAD\n4700","Ebongweni",51,51,51]
["KZN","Kokstad",null,null,"Kokstad Medium",3,12,15]
["KZN","Kokstad",null,null,"Matatiele",2,6,7]
["KZN","Kokstad",null,null,"Mzimkhulu",0,3,3]
["KZN","Kokstad",null,null,"Port Shepstone",5,10,15]
["KZN","Ncome",9510495027,"\nNquthu Rd\nBLOOD RIVER\n3102","Ncome Medium A Maxim",0,12,12]
["KZN","Ncome",null,null,"Ncome Medium B",0,11,11]
["KZN","Ncome",null,null,"Nkandla Correctional Centre",0,2,2]
["KZN","Ncome",null,null,"Nongoma Correctional Centre",0,2,2]
["KZN","Ncome",null,null,"Vryheid Correctional Centre",0,7,8]
["KZN","Pietermaritzburg",9510495022,"Eugene Marais Rd\nNapierville\nPIETERMARITZBURG\n3201","New Hanover Correctional Centre",1,3,4]
["KZN","Pietermaritzburg",null,null,"Ixhopho",0,2,2]
["KZN","Pietermaritzburg",null,null,"Pietermaritzburg Medium A",4,16,20]
["KZN","Pietermaritzburg",null,null,"Pietermaritzburg Medium B",1,4,5]
["KZN","Pietermaritzburg",null,null,"Sevontein Correctional Centre",0,7,7]
["KZN","Waterval",9510495028,"Newcastle to Vryheid (R34)\nTurn off to Waterval\nat Utrecht\n(follow road signs)\nUTRECHT\n2980","Ekuseni",2,2,4]
["KZN","Waterval",null,null,"Waterval Medium A",5,10,15]
["KZN","Waterval",null,null,"Waterval Medium B",9,7,16]
["KZN","Waterval",null,null,"Newcastle ",0,11,11]
["KZN","Waterval",null,null,"Utrecht",0,4,4]
["MP","Barberton",null,null,"Barberton Ac Office",null,null,{"$f":"SUBTOTAL(9,H142:H182)","v":417}]
["MP","Barberton",null,null,"Barberton Maximum"]
["MP","Barberton",null,null,"Barberton Medium A"]
["MP","Barberton",null,null,"Barberton Medium B"]
["MP","Barberton",null,null,"Barberton Town Youth"]
["MP","Barberton",null,null,"Lydenburg Correctional Centre"]
["MP","Barberton",null,null,"Nelspruit Correctional Centre"]
["MP","Bethal",null,null,"Bethal Correctional Centre "]
["MP","Bethal",null,null,"Ermelo Centre Of Excellence"]
["MP","Bethal",null,null,"Piet Retief Correctional Centre"]
["MP","Bethal",null,null,"Volksrust Correctional Centre"]
["MP","Bethal",null,null,"Standerton Correctional Centre"]
["NW","Klerksdorp",null,null,"Christiana Correctional Centre"]
["NW","Klerksdorp",null,null,"Klerksdorp Correctional Centre"]
["NW","Klerksdorp",null,null,"Potchefstroom Correctional Cntre"]
["NW","Klerksdorp",null,null,"Wolmaransstad Correctional Centre"]
["LMP","Polokwanwe",null,null,"Polokwane Correctional Centre"]
["LMP","Polokwanwe",null,null,"Modimolle Correctional Centre"]
["LMP","Polokwanwe",null,null,"Tzaneen Correctional Centre"]
["NW","Rooigrond",null,null,"Rooigrond Correctional Centre Medium A "]
["NW","Rooigrond",null,null,"Rooigrond Correctional Centre Medium B"]
["NW","Rooigrond",null,null,"Zeerust Correctional Centre"]
["NW","Rooigrond",null,null,"Lichtenburg Correctional Centre"]
["NW","Rooigrond",null,null,"Mafikeng Correctional Centre"]
["NW","Rustenburg",null,null,"Brits Correctional Service"]
["NW","Rustenburg",null,null,"Losperfontein Correctional Service"]
["NW","Rustenburg",null,null,"Mogwase Correctional Service"]
["NW","Rustenburg",null,null,"Rustenburg Area Commissioner Office"]
["NW","Rustenburg",null,null,"Rustenburg Centre Of Excellence"]
["NW","Rustenburg",null,null,"Rustenburg Medium A"]
["LMP","Thohoyandou",null,null,"Makhado Correctional Centre Gate"]
["LMP","Thohoyandou",null,null,"Thohoyandou Medium B Gate"]
["LMP","Thohoyandou",null,null,"Thohoyandoufemale & Juvenile Gate"]
["LMP","Thohoyandou",null,null,"Thohoyandou Medium A Gate"]
["MP","Witbank",null,null,"Witbank Ac Office"]
["MP","Witbank",null,null,"Witbank New Coorectional Centre"]
["MP","Witbank",null,null,"Witbank Main Gate"]
["MP","Witbank",null,null,"Middelburg Correctional Centre"]
["MP","Witbank",null,null,"Belfast Correctional Centre"]
["MP","Witbank",null,null,"Carolina Correctional Centre"]
["MP","Witbank",null,null,"Witbank Correctional Centre Hr Office"]
["WC","Allandale",null,null,"Allandale Area Commissioner"]
["WC","Allandale",null,null,"Allandale Correctional Services"]
["WC","Allandale",null,null,"Paarderberg Correctional Services"]
["WC","Allandale",null,null,"Hawequa Correctional Services"]
["WC","Allandale",null,null,"Obiqua Correcctional Service"]
["WC","Brandvlei",null,null,"Brandvlei Access Control"]
["WC","Brandvlei",null,null,"Brandvlei Maximum"]
["WC","Brandvlei",null,null,"Brandvlei Medium"]
["WC","Brandvlei",null,null,"Brandvlei Youth"]
["WC","Brandvlei",null,null,"Brandvlei Area Commissioners Office"]
["WC","Breede River",null,null,"Robertson Correctional Centre"]
["WC","Breede River",null,null,"Warmbokkeveld Correctional Centre"]
["WC","Breede River",null,null,"Dwarsrivier Correctional Centre"]
["WC","Breede River",null,null,"Worcester Female Centre"]
["WC","Breede River ",null,null,"Worcester Male Centre"]
["WC","Drakenstein",null,null,"Drakenstein Maximum Centre"]
["WC","Drakenstein",null,null,"Drakenstein Medium A Centre"]
["WC","Drakenstein",null,null,"Stellenbosch Correctional Centre"]
["WC","Drakenstein ",null,null,"Drakenstein Medium B  Youth Centre"]
["WC","Goodwood",null,null,"Goodwood Correctional Services Main Gate"]
["WC","Goodwood",null,null,"Goodwood Correctional Services"]
["WC","Overberg",null,null,"Overberg Area Correctional Office"]
["WC","Overberg",null,null,"Buffeljagsrivier Correctional Service"]
["WC","Overberg",null,null,"Caledon Remand Detention Facility"]
["WC","Overberg",null,null,"Helderstroom Maximum Centre"]
["WC","Overberg",null,null,"Helderstroom Medium Centre"]
["WC","Pollsmoor",null,null,"Pollsmoor Female"]
["WC","Pollsmoor",null,null,"Pollsmoor Medium A"]
["WC","Pollsmoor",null,null,"Pollsmoor Medium B"]
["WC","Pollsmoor",null,null,"Pollsmoor Medium C"]
["WC","Pollsmoor",null,null,"Pollsmoor Main Gate"]
["WC","Pollsmoor",null,null,"Pollsmorr Remand Detention Facility"]
["WC","Southern Cape ",null,null,"Oudtshoorn Male Centre"]
["WC","Southern Cape ",null,null,"Oudtshoorn Female Centre"]
["WC","Southern Cape ",null,null,"George Correctional Centre"]
["WC","Southern Cape ",null,null,"Mosselbay Correctional Centre"]
["WC","Southern Cape ",null,null,"Knysna Correctional Centre"]
["WC","Southern Cape ",null,null,"Beaufort West Correctional Centre"]
["WC","Southern Cape ",null,null,"Prince Albert Correctional Centre"]
["WC","Southern Cape ",null,null,"Ladismith Correctional Centre"]
["WC","Southern Cape ",null,null,"Uniondale Correctional Centre"]
["WC","Southern Cape ",null,null,"Thembalethu Correctional Centre"]
["WC","Voorberg",null,null,"Calvinia Correctional Centre"]
["WC","Voorberg",null,null,"Voorberg Medium A Centre"]
["WC","Voorberg",null,null,"Voorberg Medium B Centre"]
["WC","Voorberg",null,null,"Vanrhynsdorp Correctional Centre"]
["WC","West Coast",null,null,"Malmesbury Medium A Centre"]
["WC","West Coast",null,null,"Malmesbury Remand Detention Facility"]
["WC","West Coast",null,null,"Riebeeckwest Correctional Centre",null,null,{"$f":"SUBTOTAL(9,H183)","v":0}]
[{"$nulls":7},419]
[{"$nulls":3},"NB: Quanties are based on estimates and subject to change/s . "]